{"text_format":"1","workbook":"xlsx","n_sheets":11,"sheets":["Feuil1","ouverture dossier","Suvis dossiers","consultation dossiers","Répertoire","Data dossier","Data Suvi","Feuil2","stats","Bon plan","DB"],"not_rendered":{"charts":13,"images":25,"macros":1,"external_links":0,"defined_names":53,"comments":0,"pivot_tables":0},"unopened":[],"bounds":{"document_bytes":16777216,"sheet_cells":100000,"rows_first":2000,"rows_last":500,"rows_between":2000,"halvings":0,"cell_chars":16384,"cell_head_chars":4096},"cells_cut":0,"cells_raw":0,"read":"whole","date_system":"1900"}

{"sheet":"Feuil1","index":0,"n_rows":21,"n_cols":19,"rows_kept":21,"cut":false,"hidden":false,"merged":[[20,3,20,4],[20,12,20,13],[20,15,20,16],[20,18,20,19]]}
[]
[]
[]
[]
[]
[]
[]
[]
[]
[]
[]
[]
[]
[]
[]
[]
[]
[]
[]
[]
[null,null,null,"Ouverture dossier",null,null,null,"Suivis dossier",null,"Consultation dossier",null,null,"Répertoire",null,null,"Bon Plan",null,null,"Statistiques"]

{"sheet":"ouverture dossier","index":1,"n_rows":41,"n_cols":36,"rows_kept":41,"cut":false,"hidden":false,"merged":[[30,34,30,35],[34,9,34,15],[30,4,30,7],[38,3,38,7],[40,3,42,36],[36,9,36,15],[36,3,36,7],[3,2,4,37],[32,3,32,7],[34,34,34,35],[36,34,36,35],[6,35,6,36],[30,21,30,22],[10,3,10,36],[18,3,18,36],[28,3,28,36],[32,34,32,35],[30,9,30,15],[32,9,32,15]]}
["Date","Nouveau patient","origine","Code","CodeBis","NV Patient","Sexe","Nom","Nombis","Prenom","PrnomBis","commune","Tel","Date naissance","Nationalité","Lieu de vie","Mutu","Nmutu","Rev","CartMed","CarteID","CPAS","CartID","Statut séj","MedTrait","Pharma","assuétude","Trait.sub","Presc.","Vaccin","Serologie","Ant.med","Mal.chron","Ant.chir","Com"]
[{"$f":"D7","v":"2015-03-09"},{"$f":"D9","v":"Oui"},{"$f":"L7","v":"Paramédicale"},{"$f":"AJ7","v":2356},{"$f":"AJ7","v":2356},{"$f":"D9","v":"Oui"},{"$f":"S13","v":"M"},{"$f":"D13","v":"Ernest"},{"$f":"D13","v":"Ernest"},{"$f":"D15","v":"Yves"},{"$f":"D15","v":"Yves"},{"$f":"L15","v":"Forest 1190"},{"$f":"L17","v":"0479/315696"},{"$f":"L13","v":"1986-12-02"},{"$f":"S15","v":"Belgique"},{"$f":"D17","v":"Chez un ami"},{"$f":"D21","v":"OUI"},{"$f":"P21","v":"GMF"},{"$f":"D23","v":"RIS"},{"$f":"D25","v":"NON"},{"$f":"P25","v":"OUI"},{"$f":"P23","v":"Berchem 1082"},{"$f":"P25","v":"OUI"},{"$f":"D27","v":0},{"$f":"D31","v":"Jacques"},{"$f":"D33","v":"Pharma"},{"$f":"Q35","v":"Non"},{"$f":"Q31","v":"métha400mg"},{"$f":"Q33","v":"Fla"},{"$f":"D39","v":0},{"$f":"D35","v":"HIV"},{"$f":"Q37","v":"Non"},{"$f":"V31","v":0},{"$f":"D37","v":"Aucun"},{"$f":"D41","v":0}]
[]
[null,null,"Ouverture Dossiers"]
[]
[]
[null,null,"Date d'encodage","2015-03-09",null,null,null,"Origine ouverture dossier",null,null,null,"Paramédicale",null,null,null,null,null,null,null,null,null,null,"Code",null,null,null,null,null,null,null,null,null,null,null,"Code",2356]
[]
[null,null,"Nouveau patient","Oui"]
[]
[null,null,null,"Informations personnelles"]
[]
[null,null,"Nom:","Ernest",null,null,null,"Date de naissance:",null,null,null,"1986-12-02",null,null,null,null,"Sexe",null,"M"]
[]
[null,null,"Prenom:","Yves",null,null,null,"Code postal:",null,null,null,"Forest 1190",null,null,null,null,"Nationalité:",null,"Belgique"]
[]
[null,null,"Lieux de vie","Chez un ami",null,null,null,"Téléphone:",null,null,null,"0479/315696"]
[]
[null,null,null,"Informations sociales"]
[]
[null,null,"Mutuelle:","OUI",null,null,null,null,null,null,null,"Nom de la mutuelle:",null,null,null,"GMF"]
[]
[null,null,"Revenu:","RIS",null,null,null,null,null,null,null,"CPAS:",null,null,null,"Berchem 1082"]
[]
[null,null,"Carte méd.:","NON",null,null,null,null,null,null,null,"Carte identité:",null,null,null,"OUI"]
[]
[null,null,"Statut de séjour"]
[]
[null,null,null,"Informations médicales"]
[]
[null,null,"Médecin traitant","Jacques",null,null,null,null,null,"Traitement de substitution ",null,null,null,null,null,null,"métha400mg",null,"Maladie Chronique"]
[]
[null,null,"Pharmacie","Pharma",null,null,null,null,null,"Prescripteur",null,null,null,null,null,null,"Fla"]
[]
[null,null,"Sérologie","HIV",null,null,null,null,null,"Assuétude",null,null,null,null,null,null,"Non"]
[]
[null,null,"Anté.chirugicaux","Aucun",null,null,null,null,null,"Ant.médicaux",null,null,null,null,null,null,"Non"]
[]
[]
[]
[null,null,"Commentaires"]

{"sheet":"Suvis dossiers","index":2,"n_rows":33,"n_cols":31,"rows_kept":33,"cut":false,"hidden":false,"merged":[[32,6,32,7],[29,8,29,9],[29,11,29,12],[26,8,26,9],[29,14,29,15],[27,8,27,9],[26,14,26,15],[27,11,27,12],[27,14,27,15],[32,8,38,34],[29,17,29,18],[29,20,29,30],[26,17,26,18],[27,17,27,18],[26,20,26,30],[27,20,27,30],[13,8,13,9],[23,8,23,9],[23,11,23,12],[21,14,21,15],[23,14,23,15],[21,11,21,12],[19,11,19,12],[14,8,14,9],[17,8,17,9],[19,8,19,9],[21,8,21,9],[15,8,15,9],[17,11,17,12],[14,11,14,12],[19,14,19,15],[4,12,4,17],[13,17,13,34],[13,14,13,15],[14,14,14,15],[17,14,17,15],[13,11,13,12],[14,17,23,34]]}
[null,"DateSuvis","IDUsager","TypeSuvis","Travailleur","DE1","OBJ1","OR1","DE2","OBJ2","OR2","DE3","OBJ3","OR3","DE4","OBJ4","OR4","DE5","OBJ5","OR5","AC1","LIEU1","TRACC1","DATEACC1","HACC","AC2","LIEU2","TRACC2","DATAACC2","HACC2","COMM"]
[null,{"$f":"I9","v":"00:00:00"},{"$f":"M9","v":0},{"$f":"Q9","v":"Paramédical"},{"$f":"T9","v":0},{"$f":"I15","v":0},{"$f":"L15","v":0},{"$f":"O15","v":0},{"$f":"+I18","v":0},{"$f":"+L18","v":0},{"$f":"+O18","v":0},{"$f":"+I18","v":0},{"$f":"+L20","v":0},{"$f":"O20","v":0},{"$f":"I22","v":0},{"$f":"L22","v":0},{"$f":"O22","v":0},{"$f":"I24","v":0},{"$f":"L24","v":0},{"$f":"O24","v":0},{"$f":"I28","v":0},{"$f":"L28","v":0},{"$f":"+O28","v":0},{"$f":"R28","v":"00:00:00"},{"$f":"T28","v":"00:00:00"},{"$f":"I30","v":0},{"$f":"L30","v":"00:00:00"},{"$f":"O30","v":"00:00:00"},{"$f":"R30","v":"00:00:00"},{"$f":"T30","v":"00:00:00"},{"$f":"I33","v":0}]
[]
[]
[null,null,null,null,null,null,null,null,null,null,null,null,"Suivis des dossier"]
[]
[]
[]
[null,null,null,null,null,null,"Date du suivi",null,null,null,"Identifiant usager",null,null,null,null,"Type de suvis","Paramédical",null,"Travailleur"]
[null,null,null,null,null,null,null,null,null,null,null,null,null,null,null,null,{"$f":"VLOOKUP(Q9,LDTypeSuivi[],2,0)","v":"ListParam"}]
[]
[]
[null,null,null,null,null,null,"DEMANDES"]
[null,null,null,null,null,null,null,null,"Nature de la demande",null,null,"Objet de la demande",null,null,"Orientation"]
[null,null,null,null,null,null,"Demande 1"]
[null,null,null,null,null,null,null,null,{"$f":"VLOOKUP(I15,Tableau5[],2,0)","v":{"$error":"#N/A"}}]
[]
[null,null,null,null,null,null,"Demande 2"]
[]
[null,null,null,null,null,null,"Demande 3"]
[]
[null,null,null,null,null,null,"Demande 4"]
[]
[null,null,null,null,null,null,"Demande 5"]
[]
[]
[null,null,null,null,null,null,"Accompagnement",null,"Accompagnement",null,null,"Lieu de l'accompagnement",null,null,"Travailleur accompagnant",null,null,"Date accompagnement",null,null,"heure accompagnement"]
[]
[]
[]
[]
[]
[null,null,null,null,null,null,"Commentaires"]

{"sheet":"consultation dossiers","index":3,"n_rows":35,"n_cols":14,"rows_kept":35,"cut":false,"hidden":false,"merged":[[32,7,32,12],[22,7,22,15],[4,7,4,15],[12,7,12,15],[14,12,14,13],[16,12,16,13],[28,10,28,12],[18,12,18,13],[28,13,28,14],[30,13,30,14],[0,8,0,13],[30,7,30,9],[30,10,30,12],[24,10,24,12],[24,13,24,14],[26,7,26,9],[26,10,26,12],[26,13,26,14]]}
[null,null,null,null,null,null,null,null,"Consultation dossier"]
[]
[null,null,null,null,null,null,"Recherche",null,null," "]
[]
[null,null,null,null,null,null,null,"Informations personnelles"]
[]
[null,null,null,null,null,null,"Nom:",null,null,"Date de naissance:",null,null,null,"Téléphone:"]
[]
[null,null,null,null,null,null,"Prenom:",null,null,"Code postal:",null,null,null,"Nationalité:"]
[]
[null,null,null,null,null,null,"Lieux de vie"]
[]
[null,null,null,null,null,null,null,"Informations sociales "]
[]
[null,null,null,null,null,null,"Mutuelle:",null,null,"Nom de la mutuelle:"]
[]
[null,null,null,null,null,null,"Revenu:",null,null,"CPAS:"]
[]
[null,null,null,null,null,null,"Carte méd.:",null,null,"Carte identité:"]
[]
[null,null,null,null,null,null,"Statut de séjour"]
[]
[null,null,null,null,null,null,null,"Informations médicales"]
[]
[null,null,null,null,null,null,"Médecin traitant",null,null,null,"Traitement de substitution "]
[]
[null,null,null,null,null,null,"Pharmacie",null,null,null,"Prescripteur"]
[]
[null,null,null,null,null,null,"Sérologie",null,null,null,"Assuétude"]
[]
[null,null,null,null,null,null,"Anté.chirugicaux",null,null,null,"Ant.médicaux"]
[]
[null,null,null,null,null,null,"Vaccins"]
[]
[null,null,null,null,null,null,"Commentaires"]

{"sheet":"Répertoire","index":4,"n_rows":15,"n_cols":4,"rows_kept":15,"cut":false,"hidden":false,"merged":[[0,0,0,3]]}
["Répertoire"]
["Nom","Prenom","Téléphone","RECHERCHE"]
[{"$f":"'Data dossier'!H3","v":0},{"$f":"'Data dossier'!J3","v":0},{"$f":"'Data dossier'!J3","v":0}]
[{"$f":"'Data dossier'!#REF!","v":{"$error":"#REF!"}},{"$f":"'Data dossier'!#REF!","v":{"$error":"#REF!"}},{"$f":"'Data dossier'!#REF!","v":{"$error":"#REF!"}}]
[{"$f":"'Data dossier'!#REF!","v":{"$error":"#REF!"}},{"$f":"'Data dossier'!#REF!","v":{"$error":"#REF!"}},{"$f":"'Data dossier'!#REF!","v":{"$error":"#REF!"}}]
[{"$f":"'Data dossier'!H4","v":"Godenne"},{"$f":"'Data dossier'!J4","v":"Sophie"},{"$f":"'Data dossier'!M4","v":"0479/312865"}]
[{"$f":"'Data dossier'!H5","v":"Godenne"},{"$f":"'Data dossier'!J5","v":"Sophie"},{"$f":"'Data dossier'!M5","v":"0479/312865"}]
[{"$f":"'Data dossier'!H6","v":"Godenne"},{"$f":"'Data dossier'!J6","v":"Sophie"},{"$f":"'Data dossier'!M6","v":"0479/312865"}]
[{"$f":"'Data dossier'!H7","v":"Godenne"},{"$f":"'Data dossier'!J7","v":"Sophie"},{"$f":"'Data dossier'!M7","v":"0479/312865"}]
[{"$f":"'Data dossier'!H8","v":"Godenne"},{"$f":"'Data dossier'!J8","v":"Sophie"},{"$f":"'Data dossier'!M8","v":"0479/312865"}]
[{"$f":"'Data dossier'!H9","v":"collin"},{"$f":"'Data dossier'!J9","v":"Sophie"},{"$f":"'Data dossier'!M9","v":"0479/312865"}]
[{"$f":"'Data dossier'!H10","v":"collin"},{"$f":"'Data dossier'!J10","v":"Christopher"},{"$f":"'Data dossier'!M10","v":"0479/312865"}]
[{"$f":"'Data dossier'!#REF!","v":{"$error":"#REF!"}},{"$f":"'Data dossier'!#REF!","v":{"$error":"#REF!"}},{"$f":"'Data dossier'!#REF!","v":{"$error":"#REF!"}}]
[{"$f":"'Data dossier'!H11","v":"Ernest"},{"$f":"'Data dossier'!J11","v":"Yves"},{"$f":"'Data dossier'!M11","v":"0479/315696"}]
[{"$f":"'Data dossier'!#REF!","v":{"$error":"#REF!"}},{"$f":"'Data dossier'!#REF!","v":{"$error":"#REF!"}},{"$f":"'Data dossier'!#REF!","v":{"$error":"#REF!"}}]

{"sheet":"Data dossier","index":5,"n_rows":11,"n_cols":35,"rows_kept":11,"cut":false,"hidden":false,"merged":[]}
["Date d'encodage","nouveau patient","Origine de l'ouverture","Code","CodeBis","NV Patient","Sexe","nom","NomBis","prénom","PrenomBis","commune","Téléphone","Date de naissance","Nationalité","lieux de vie","Mutuelle","Nom mutuelle","Revenu","Carte médicale","CarteID","CPAS","carte identité","Statut de séjour","Medecin traitant","Pharmacie","assuétude","Traitement de sub","Prescripteur","Vaccin","sérologie","antécédants médicaux","Maladie chronique","Antécédants chirurgicaux","Commentaires"]
[]
[]
["2014-12-08","Oui","Paramédicale",1,null,null,"F","Godenne","Godenne","Sophie","Sophie","Forest 1190","0479/312865","1986-12-02","Belgique","Appartement privé","OUI",0,"RIS","NON",null,"Berchem 1082","OUI",0,"Guy",0,0,"métha400mg",0,0,0,0,0,0,"00:00:00"]
["2014-12-08","Oui","Paramédicale",2,0,null,"F","Godenne","Godenne","Sophie","Sophie","Forest 1190","0479/312865","1986-12-02","Belgique","Appartement privé","OUI",0,"RIS","NON","OUI","Berchem 1082","OUI",0,"Guy",0,0,"métha400mg",0,0,0,0,0,0,"00:00:00"]
["2014-12-08","Oui","Paramédicale",3,0,null,"F","Godenne","Godenne","Sophie","Sophie","Forest 1190","0479/312865","1986-12-02","Belgique","Appartement privé","OUI",0,"RIS","NON","OUI","Berchem 1082","OUI",0,"Guy",0,0,"métha400mg",0,0,0,0,0,0,"00:00:00"]
["2014-12-08","Oui","Paramédicale",4,0,null,"F","Godenne","Godenne","Sophie","Sophie","Forest 1190","0479/312865","1986-12-02","Belgique","Appartement privé","OUI",0,"RIS","NON","OUI","Berchem 1082","OUI",0,"Guy",0,0,"métha400mg",0,0,0,0,0,0,"00:00:00"]
["2014-12-08","Oui","Paramédicale",5,0,"Oui","F","Godenne","Godenne","Sophie","Sophie","Forest 1190","0479/312865","1986-12-02","Belgique","Appartement privé","OUI",0,"RIS","NON","OUI","Berchem 1082","OUI",0,"Guy",0,0,"métha400mg",0,0,0,0,0,0,"00:00:00"]
["2014-12-08","Oui","Paramédicale",6,0,"Oui","F","collin","collin","Sophie","Sophie","Forest 1190","0479/312865","1986-12-02","Belgique","Appartement privé","OUI",0,"RIS","NON","OUI","Berchem 1082","OUI",0,"Guy",0,0,"métha400mg",0,0,0,0,0,0,"00:00:00"]
["2014-12-08","Oui","Paramédicale",20584,20584,"Oui","F","collin","collin","Christopher","Christopher","Forest 1190","0479/312865","1986-12-02","Belgique","Appartement privé","OUI","00:00:00","RIS","NON","OUI","Berchem 1082","OUI","00:00:00","Guy","00:00:00","00:00:00","métha400mg","00:00:00","00:00:00","00:00:00","00:00:00","00:00:00","00:00:00",0]
["2015-03-09","Oui","Paramédicale",2356,2356,"Oui","M","Ernest","Ernest","Yves","Yves","Forest 1190","0479/315696","1986-12-02","Belgique","Chez un ami","OUI","GMF","RIS","NON","OUI","Berchem 1082","OUI",0,"Jacques","Pharma","Non","métha400mg","Fla",0,"HIV","Non",0,"Aucun",0]

{"sheet":"Data Suvi","index":6,"n_rows":6,"n_cols":30,"rows_kept":6,"cut":false,"hidden":false,"merged":[]}
["DateSuvis","IDUsager","TypeSuvis","Travailleur","DE1","OBJ1","OR1","DE2","OBJ2","OR2","DE3","OBJ3","OR3","DE4","OBJ4","OR4","DE5","OBJ5","OR5","AC1","LIEU1","TRACC1","DATEACC1","HACC","AC2","LIEU2","TRACC2","DATAACC2","HACC2","COMM"]
[]
["00:00:00",0,0,0,0,0,0,0,0,0,0,0,0,0,0,0,0,0,0,0,0,0,"00:00:00",0,0,0,0,0,0,0]
["00:00:00",0,0,0,0,0,0,0,0,0,0,0,0,0,0,0,0,0,0,0,0,0,"00:00:00",0,0,0,0,0,0,0]
["00:00:00",0,0,0,0,0,0,0,0,0,0,0,0,0,0,0,0,0,0,0,0,0,"00:00:00",0,0,0,0,0,0,0]
["00:00:00",0,0,0,0,0,0,0,0,0,0,0,0,0,0,0,0,0,0,0,0,0,"00:00:00",0,0,0,0,0,0,0]

{"sheet":"Feuil2","index":7,"n_rows":10,"n_cols":19,"rows_kept":10,"cut":false,"hidden":false,"merged":[]}
["Type de suivis","listeAssocié",null,null,"LD.Social","liste",null,null,null,null,null,null,null,null,"LD.Paramed","Liste",null,"Listpied","Listplaie"]
["Social","ListSocial",null,null,"CPAS","LLA",null,null,null,null,null,null,null,null,"Soin de pied/bain de pied","Listpied",null,"Micoses","Soin abcés"]
["Paramédical","ListParam",null,null,"Aide juridique","LL2",null,null,null,null,null,null,null,null,"Soin de plaie","Listplai",null,"Blessures","soin de blessure"]
["Médical","ListMed",null,null,"Recherche logement","LL4",null,null,null,null,null,null,null,null,"Ecoute psychosociale","Listecoute",null,"Cloques","pancement"]
[null,null,null,null,"Traitement de substitution",null,null,null,null,null,null,null,null,null,"Conseils RDR","listrdr",null,"Cors au pied","suivis soin de plaies"]
[null,null,null,null,"Cure de désintoxication",null,null,null,null,null,null,null,null,null,"Promotion de la santé/conseils santé","listesanté",null,"Pedicure","Enlèvement fil/agraffe"]
[null,null,null,null,"Aide administrative",null,null,null,null,null,null,null,null,null,"Orientation médicale","Listorientationmedicale"]
[null,null,null,null,"Ecoute psychosociale",null,null,null,null,null,null,null,null,null,"Don de matériel/don de médicament"]
[null,null,null,null,"Médiation de dette",null,null,null,null,null,null,null,null,null,"Massage"]
[null,null,null,null,"Recherche centre hébergement"]

{"sheet":"stats","index":8,"n_rows":316,"n_cols":26,"rows_kept":316,"cut":false,"hidden":false,"merged":[[116,1,116,21],[90,0,90,22],[92,1,92,3],[92,5,92,7],[92,9,92,11],[92,14,92,15],[92,19,92,25],[28,1,28,6],[54,1,54,20],[55,1,55,4],[55,6,55,10],[55,15,55,18],[0,0,0,22],[5,1,5,6],[5,8,5,16],[3,0,3,22],[5,18,5,22]]}
["Statistiques"]
[]
[]
["Statistiques des dossiers"]
[]
[null,"Sexe Dossier",null,null,null,null,null,null,"Origine de l'ouverture du dossier",null,null,null,null,null,null,null,null,null,"Nouveaux patients"]
["Femme",{"$f":"COUNTIFS('Data dossier'!G3:G11,\"F\")","v":7},null,null,null,null,null,null,"Social",{"$f":"COUNTIFS('Data dossier'!C3:C11,\"Social\")","v":0},null,null,null,null,null,null,null,null,"NB. NV Patient",null,{"$f":"COUNTIFS('Data dossier'!B4:B11,\"OUI\")","v":8}]
["Homme",{"$f":"COUNTIFS('Data dossier'!G3:G11,\"H\")","v":0},null,null,null,null,null,null,"Paramédicale",{"$f":"COUNTIFS('Data dossier'!C3:C11,\"Paramédicale\")","v":8},null,null,null,null,null,null,null,null,"NB.Patient existant",null,{"$f":"COUNTIFS('Data dossier'!B3:B11,\"NON\")","v":0}]
[null,null,null,null,null,null,null,null,"Médicale",{"$f":"COUNTIFS('Data dossier'!C3:C11,\"Médicale\")","v":0}]
[]
[]
[]
[]
[]
[]
[]
[]
[]
[]
[]
[]
[]
[]
[]
[]
[]
[]
[]
[null,"Origine géographique"]
[]
[null,"Anderlecht 1070",{"$f":"COUNTIFS('Data dossier'!L3:L11,DB!A2)","v":0}]
[null,"Auderghem 1160",{"$f":"COUNTIFS('Data dossier'!L3:L11,DB!A3)","v":0}]
[null,"Berchem 1082",{"$f":"COUNTIFS('Data dossier'!L3:L11,DB!A4)","v":0}]
[null,"Bruxelles 1000",{"$f":"COUNTIFS('Data dossier'!L3:L11,DB!A5)","v":0}]
[null,"Etterbeek 1040",{"$f":"COUNTIFS('Data dossier'!L3:L11,DB!A6)","v":0}]
[null,"Evere 1140",{"$f":"COUNTIFS('Data dossier'!L3:L11,DB!A7)","v":0}]
[null,"Forest 1190",{"$f":"COUNTIFS('Data dossier'!L3:L11,DB!A8)","v":8}]
[null,"Ganshoren 1083",{"$f":"COUNTIFS('Data dossier'!L3:L11,DB!A9)","v":0}]
[null,"Ixelles 1050",{"$f":"COUNTIFS('Data dossier'!L3:L11,DB!A10)","v":0}]
[null,"Jette 1090",{"$f":"COUNTIFS('Data dossier'!L3:L11,DB!A11)","v":0}]
[null,"Koekelberg 1081",{"$f":"COUNTIFS('Data dossier'!L3:L11,DB!A12)","v":0}]
[null,"Molenbeek 1080",{"$f":"COUNTIFS('Data dossier'!L3:L11,DB!A13)","v":0}]
[null,"Saint-Gilles 1060",{"$f":"COUNTIFS('Data dossier'!L3:L11,DB!A14)","v":0}]
[null,"Saint-joss 1210",{"$f":"COUNTIFS('Data dossier'!L3:L11,DB!A15)","v":0}]
[null,"Schaerbeek 1030",{"$f":"COUNTIFS('Data dossier'!L3:L11,DB!A16)","v":0}]
[null,"Uccle 1180",{"$f":"COUNTIFS('Data dossier'!L3:L11,DB!A17)","v":0}]
[null,"Watermael 1170",{"$f":"COUNTIFS('Data dossier'!L3:L11,DB!A18)","v":0}]
[null,"Woluwé-St-Lam1200",{"$f":"COUNTIFS('Data dossier'!L3:L11,DB!A19)","v":0}]
[null,"Woluwé-St-pie 1210",{"$f":"COUNTIFS('Data dossier'!L3:L11,DB!A20)","v":0}]
[null,"Région Wallone",{"$f":"COUNTIFS('Data dossier'!L3:L11,DB!A21)","v":0}]
[null,"Région Flammande",{"$f":"COUNTIFS('Data dossier'!L3:L11,DB!A22)","v":0}]
[null,"Hors Belgique",{"$f":"COUNTIFS('Data dossier'!L3:L11,DB!A23)","v":0}]
[]
[]
[null,"Statistiques concernant les suivis"]
[null,"Type de suivis",null,null,null,null,"Types de suivis social",null,null,null,null,null,null,null,null,"Types de suivis paramédical"]
[null,"Social",{"$f":"COUNTIFS(Tableau2[TypeSuvis],DB!E2)","v":0},null,null,null,"CPAS",null,{"$f":"COUNTIFS(Tableau2[TypeSuvis],Feuil2!E2)","v":0},{"$f":"COUNTIFS(Tableau2[DE2],Feuil2!E2)","v":0},{"$f":"COUNTIFS('Data Suvi'!K:K,Feuil2!E2)","v":0},{"$f":"SUM(I57:K57)","v":0},null,null,null,"Soin de pied/bain de pied",{"$f":"COUNTIFS(Tableau2[DE1],Feuil2!O2)","v":0},{"$f":"COUNTIFS(Tableau2[DE2],Feuil2!O2)","v":0},{"$f":"COUNTIFS(Tableau2[DE3],Feuil2!O2)","v":0},{"$f":"SUM(Q57:S57)","v":0}]
[null,"Paramédicale",{"$f":"COUNTIFS(Tableau2[TypeSuvis],DB!E3)","v":0},null,null,null,"Aide juridique",null,{"$f":"COUNTIFS(Tableau2[TypeSuvis],Feuil2!E3)","v":0},{"$f":"COUNTIFS(Tableau2[DE2],Feuil2!E3)","v":0},{"$f":"COUNTIFS('Data Suvi'!K:K,Feuil2!E3)","v":0},{"$f":"SUM(I58:K58)","v":0},null,null,null,"Soin de plaie",{"$f":"COUNTIFS(Tableau2[DE1],Feuil2!O3)","v":0},{"$f":"COUNTIFS(Tableau2[DE2],Feuil2!O3)","v":0},{"$f":"COUNTIFS(Tableau2[DE3],Feuil2!O3)","v":0},{"$f":"SUM(Q58:S58)","v":0}]
[null,"Médicale",{"$f":"COUNTIFS(Tableau2[TypeSuvis],DB!E4)","v":0},null,null,null,"Recherche logement",null,{"$f":"COUNTIFS(Tableau2[TypeSuvis],Feuil2!E4)","v":0},{"$f":"COUNTIFS(Tableau2[DE2],Feuil2!E4)","v":0},{"$f":"COUNTIFS('Data Suvi'!K:K,Feuil2!E4)","v":0},{"$f":"SUM(I59:K59)","v":0},null,null,null,"Ecoute psychosociale",{"$f":"COUNTIFS(Tableau2[DE1],Feuil2!O4)","v":0},{"$f":"COUNTIFS(Tableau2[DE2],Feuil2!O4)","v":0},{"$f":"COUNTIFS(Tableau2[DE3],Feuil2!O4)","v":0},0]
[null,null,null,null,null,null,"Traitement de substitution",null,{"$f":"COUNTIFS(Tableau2[TypeSuvis],Feuil2!E5)","v":0},{"$f":"COUNTIFS(Tableau2[DE2],Feuil2!E5)","v":0},{"$f":"COUNTIFS('Data Suvi'!K:K,Feuil2!E5)","v":0},{"$f":"SUM(I60:K60)","v":0},null,null,null,"Conseils RDR",{"$f":"COUNTIFS(Tableau2[DE1],Feuil2!O5)","v":0},{"$f":"COUNTIFS(Tableau2[DE2],Feuil2!O5)","v":0},{"$f":"COUNTIFS(Tableau2[DE3],Feuil2!O5)","v":0},0]
[null,null,null,null,null,null,"Cure de désintoxication",null,{"$f":"COUNTIFS(Tableau2[TypeSuvis],Feuil2!E6)","v":0},{"$f":"COUNTIFS(Tableau2[DE2],Feuil2!E6)","v":0},{"$f":"COUNTIFS('Data Suvi'!K:K,Feuil2!E6)","v":0},0,null,null,null,"Promotion de la santé/conseils santé",{"$f":"COUNTIFS(Tableau2[DE1],Feuil2!O6)","v":0},{"$f":"COUNTIFS(Tableau2[DE2],Feuil2!O6)","v":0},{"$f":"COUNTIFS(Tableau2[DE3],Feuil2!O6)","v":0},0]
[null,null,null,null,null,null,"Aide administrative",null,{"$f":"COUNTIFS(Tableau2[TypeSuvis],Feuil2!E7)","v":0},{"$f":"COUNTIFS(Tableau2[DE2],Feuil2!E7)","v":0},{"$f":"COUNTIFS('Data Suvi'!K:K,Feuil2!E7)","v":0},0,null,null,null,"Orientation médicale",{"$f":"COUNTIFS(Tableau2[DE1],Feuil2!O7)","v":0},{"$f":"COUNTIFS(Tableau2[DE2],Feuil2!O7)","v":0},{"$f":"COUNTIFS(Tableau2[DE3],Feuil2!O7)","v":0},0]
[null,null,null,null,null,null,"Ecoute psychosociale",null,{"$f":"COUNTIFS(Tableau2[TypeSuvis],Feuil2!E8)","v":0},{"$f":"COUNTIFS(Tableau2[DE2],Feuil2!E8)","v":0},{"$f":"COUNTIFS('Data Suvi'!K:K,Feuil2!E8)","v":0},0,null,null,null,"Don de matériel/don de médicament",{"$f":"COUNTIFS(Tableau2[DE1],Feuil2!O8)","v":0},{"$f":"COUNTIFS(Tableau2[DE2],Feuil2!O8)","v":0},{"$f":"COUNTIFS(Tableau2[DE3],Feuil2!O8)","v":0},0]
[null,null,null,null,null,null,"Médiation de dette",null,{"$f":"COUNTIFS(Tableau2[TypeSuvis],Feuil2!E9)","v":0},{"$f":"COUNTIFS(Tableau2[DE2],Feuil2!E9)","v":0},{"$f":"COUNTIFS('Data Suvi'!K:K,Feuil2!E9)","v":0},0,null,null,null,"Massage",{"$f":"COUNTIFS(Tableau2[DE1],Feuil2!O9)","v":0},{"$f":"COUNTIFS(Tableau2[DE2],Feuil2!O9)","v":0},{"$f":"COUNTIFS(Tableau2[DE3],Feuil2!O9)","v":0},0]
[null,null,null,null,null,null,"Recherche centre hébergement",null,{"$f":"COUNTIFS(Tableau2[TypeSuvis],Feuil2!E10)","v":0},{"$f":"COUNTIFS(Tableau2[DE2],Feuil2!E10)","v":0},{"$f":"COUNTIFS('Data Suvi'!K:K,Feuil2!E10)","v":0},0]
[]
[]
[]
[]
[]
[]
[]
[]
[]
[]
[]
[]
[]
[]
[]
[]
[]
[]
[]
[]
[]
[]
[]
[]
[]
["Statistiques situation sociale des usagers"]
[]
[null,"Lieux de vie",null,null,null,"En ordre de mutuelle",null,null,null,"Carte médicale",null,null,null,null,"Revenus",null,null,null,null,"CPAS référents"]
[null,null,null,null,null,null,null,null,null,null,null,null,null,null,null,null,null,null,null,"Anderlecht 1070",{"$f":"COUNTIFS(ClientDonnée[CPAS],DB!A2)","v":0}]
[null,"Rue",{"$f":"COUNTIFS(ClientDonnée[lieux de vie],DB!D2)","v":0},null,null,"En ordre",{"$f":"COUNTIFS(ClientDonnée[Mutuelle],DB!G2)","v":8},null,null,"oui",{"$f":"COUNTIFS(ClientDonnée[Carte médicale],DB!K2)","v":0},null,null,null,"Revenu professionnel",{"$f":"COUNTIFS(ClientDonnée[Revenu],DB!J2)","v":0},null,null,null,"Auderghem 1160",{"$f":"COUNTIFS(ClientDonnée[CPAS],DB!A3)","v":0}]
[null,"Appartement privé",{"$f":"COUNTIFS(ClientDonnée[lieux de vie],DB!D3)","v":7},null,null,"Pas en ordre",{"$f":"COUNTIFS(ClientDonnée[Mutuelle],DB!G3)","v":0},null,null,"non",{"$f":"COUNTIFS(ClientDonnée[Carte médicale],DB!K3)","v":8},null,null,null,"RIS",{"$f":"COUNTIFS(ClientDonnée[Revenu],DB!J3)","v":8},null,null,null,"Berchem 1082",{"$f":"COUNTIFS(ClientDonnée[CPAS],DB!A4)","v":8}]
[null,"Chez un ami",{"$f":"COUNTIFS(ClientDonnée[lieux de vie],DB!D4)","v":1},null,null,null,null,null,null,null,null,null,null,null,"Aide sociale",{"$f":"COUNTIFS(ClientDonnée[Revenu],DB!J4)","v":0},null,null,null,"Bruxelles 1000",{"$f":"COUNTIFS(ClientDonnée[CPAS],DB!A5)","v":0}]
[null,"Maison d'accueil",{"$f":"COUNTIFS(ClientDonnée[lieux de vie],DB!D5)","v":0},null,null,null,null,null,null,null,null,null,null,null,"Manche",{"$f":"COUNTIFS(ClientDonnée[Revenu],DB!J5)","v":0},null,null,null,"Etterbeek 1040",{"$f":"COUNTIFS(ClientDonnée[CPAS],DB!A6)","v":0}]
[null,"Squat",{"$f":"COUNTIFS(ClientDonnée[lieux de vie],DB!D6)","v":0},null,null,null,null,null,null,null,null,null,null,null,"Travail au noir",{"$f":"COUNTIFS(ClientDonnée[Revenu],DB!J6)","v":0},null,null,null,"Evere 1140",{"$f":"COUNTIFS(ClientDonnée[CPAS],DB!A7)","v":0}]
[null,"autre",{"$f":"COUNTIFS(ClientDonnée[lieux de vie],DB!D7)","v":0},null,null,null,null,null,null,null,null,null,null,null,"Sans ressources",{"$f":"COUNTIFS(ClientDonnée[Revenu],DB!J7)","v":0},null,null,null,"Forest 1190",{"$f":"COUNTIFS(ClientDonnée[CPAS],DB!A8)","v":0}]
[null,null,null,null,null,null,null,null,null,null,null,null,null,null,null,null,null,null,null,"Ganshoren 1083",{"$f":"COUNTIFS(ClientDonnée[CPAS],DB!A9)","v":0}]
[null,null,null,null,null,null,null,null,null,null,null,null,null,null,null,null,null,null,null,"Ixelles 1050",{"$f":"COUNTIFS(ClientDonnée[CPAS],DB!A10)","v":0}]
[null,null,null,null,null,null,null,null,null,null,null,null,null,null,null,null,null,null,null,"Jette 1090",{"$f":"COUNTIFS(ClientDonnée[CPAS],DB!A11)","v":0}]
[null,null,null,null,null,null,null,null,null,null,null,null,null,null,null,null,null,null,null,"Koekelberg 1081",{"$f":"COUNTIFS(ClientDonnée[CPAS],DB!A12)","v":0}]
[null,null,null,null,null,null,null,null,null,null,null,null,null,null,null,null,null,null,null,"Molenbeek 1080",{"$f":"COUNTIFS(ClientDonnée[CPAS],DB!A13)","v":0}]
[null,null,null,null,null,null,null,null,null,null,null,null,null,null,null,null,null,null,null,"Saint-Gilles 1060",{"$f":"COUNTIFS(ClientDonnée[CPAS],DB!A14)","v":0}]
[null,null,null,null,null,null,null,null,null,null,null,null,null,null,null,null,null,null,null,"Saint-joss 1210",{"$f":"COUNTIFS(ClientDonnée[CPAS],DB!A15)","v":0}]
[null,null,null,null,null,null,null,null,null,null,null,null,null,null,null,null,null,null,null,"Schaerbeek 1030",{"$f":"COUNTIFS(ClientDonnée[CPAS],DB!A16)","v":0}]
[null,null,null,null,null,null,null,null,null,null,null,null,null,null,null,null,null,null,null,"Uccle 1180",{"$f":"COUNTIFS(ClientDonnée[CPAS],DB!A17)","v":0}]
[null,null,null,null,null,null,null,null,null,null,null,null,null,null,null,null,null,null,null,"Watermael 1170",{"$f":"COUNTIFS(ClientDonnée[CPAS],DB!A18)","v":0}]
[null,null,null,null,null,null,null,null,null,null,null,null,null,null,null,null,null,null,null,"Woluwé-St-Lam1200",{"$f":"COUNTIFS(ClientDonnée[CPAS],DB!A19)","v":0}]
[null,null,null,null,null,null,null,null,null,null,null,null,null,null,null,null,null,null,null,"Woluwé-St-pie 1210",{"$f":"COUNTIFS(ClientDonnée[CPAS],DB!A20)","v":0}]
[null,null,null,null,null,null,null,null,null,null,null,null,null,null,null,null,null,null,null,"Région Wallone",{"$f":"COUNTIFS(ClientDonnée[CPAS],DB!A21)","v":0}]
[null,null,null,null,null,null,null,null,null,null,null,null,null,null,null,null,null,null,null,"Région Flammande",{"$f":"COUNTIFS(ClientDonnée[CPAS],DB!A22)","v":0}]
[null,null,null,null,null,null,null,null,null,null,null,null,null,null,null,null,null,null,null,"Hors Belgique",{"$f":"COUNTIFS(ClientDonnée[CPAS],DB!A23)","v":0}]
[]
[null,"Nationalité"]
[]
[null,null,null,null,null,null,null,null,null,null,null,null,null,null,null,null,null,null,null,null,null,null,null,"Afghanistan",null,{"$f":"COUNTIFS(ClientDonnée[Nationalité],DB!B2)","v":0}]
[null,null,null,null,null,null,null,null,null,null,null,null,null,null,null,null,null,null,null,null,null,null,null,"Afrique du Sud",null,{"$f":"COUNTIFS(ClientDonnée[Nationalité],DB!B3)","v":0}]
[null,null,null,null,null,null,null,null,null,null,null,null,null,null,null,null,null,null,null,null,null,null,null,"Albanie",null,{"$f":"COUNTIFS(ClientDonnée[Nationalité],DB!B4)","v":0}]
[null,null,null,null,null,null,null,null,null,null,null,null,null,null,null,null,null,null,null,null,null,null,null,"Algérie",null,{"$f":"COUNTIFS(ClientDonnée[Nationalité],DB!B5)","v":0}]
[null,null,null,null,null,null,null,null,null,null,null,null,null,null,null,null,null,null,null,null,null,null,null,"Allemagne",null,{"$f":"COUNTIFS(ClientDonnée[Nationalité],DB!B6)","v":0}]
[null,null,null,null,null,null,null,null,null,null,null,null,null,null,null,null,null,null,null,null,null,null,null,"Andorre",null,{"$f":"COUNTIFS(ClientDonnée[Nationalité],DB!B7)","v":0}]
[null,null,null,null,null,null,null,null,null,null,null,null,null,null,null,null,null,null,null,null,null,null,null,"Angleterre",null,{"$f":"COUNTIFS(ClientDonnée[Nationalité],DB!B8)","v":0}]
[null,null,null,null,null,null,null,null,null,null,null,null,null,null,null,null,null,null,null,null,null,null,null,"Angola",null,{"$f":"COUNTIFS(ClientDonnée[Nationalité],DB!B9)","v":0}]
[null,null,null,null,null,null,null,null,null,null,null,null,null,null,null,null,null,null,null,null,null,null,null,"Arabie Saoudite",null,{"$f":"COUNTIFS(ClientDonnée[Nationalité],DB!B10)","v":0}]
[null,null,null,null,null,null,null,null,null,null,null,null,null,null,null,null,null,null,null,null,null,null,null,"Argentine",null,{"$f":"COUNTIFS(ClientDonnée[Nationalité],DB!B11)","v":0}]
[null,null,null,null,null,null,null,null,null,null,null,null,null,null,null,null,null,null,null,null,null,null,null,"Arménie",null,{"$f":"COUNTIFS(ClientDonnée[Nationalité],DB!B12)","v":0}]
[null,null,null,null,null,null,null,null,null,null,null,null,null,null,null,null,null,null,null,null,null,null,null,"Antigua-et-Barbuda",null,{"$f":"COUNTIFS(ClientDonnée[Nationalité],DB!B13)","v":0}]
[null,null,null,null,null,null,null,null,null,null,null,null,null,null,null,null,null,null,null,null,null,null,null,"Australie",null,{"$f":"COUNTIFS(ClientDonnée[Nationalité],DB!B14)","v":0}]
[null,null,null,null,null,null,null,null,null,null,null,null,null,null,null,null,null,null,null,null,null,null,null,"Autriche",null,{"$f":"COUNTIFS(ClientDonnée[Nationalité],DB!B15)","v":0}]
[null,null,null,null,null,null,null,null,null,null,null,null,null,null,null,null,null,null,null,null,null,null,null,"Azerbaïdjan",null,{"$f":"COUNTIFS(ClientDonnée[Nationalité],DB!B16)","v":0}]
[null,null,null,null,null,null,null,null,null,null,null,null,null,null,null,null,null,null,null,null,null,null,null,"Bahamas",null,{"$f":"COUNTIFS(ClientDonnée[Nationalité],DB!B17)","v":0}]
[null,null,null,null,null,null,null,null,null,null,null,null,null,null,null,null,null,null,null,null,null,null,null,"Bahreïn",null,{"$f":"COUNTIFS(ClientDonnée[Nationalité],DB!B18)","v":0}]
[null,null,null,null,null,null,null,null,null,null,null,null,null,null,null,null,null,null,null,null,null,null,null,"Bangladesh",null,{"$f":"COUNTIFS(ClientDonnée[Nationalité],DB!B19)","v":0}]
[null,null,null,null,null,null,null,null,null,null,null,null,null,null,null,null,null,null,null,null,null,null,null,"Barbade",null,{"$f":"COUNTIFS(ClientDonnée[Nationalité],DB!B20)","v":0}]
[null,null,null,null,null,null,null,null,null,null,null,null,null,null,null,null,null,null,null,null,null,null,null,"Belgique",null,{"$f":"COUNTIFS(ClientDonnée[Nationalité],DB!B21)","v":8}]
[null,null,null,null,null,null,null,null,null,null,null,null,null,null,null,null,null,null,null,null,null,null,null,"Belize",null,{"$f":"COUNTIFS(ClientDonnée[Nationalité],DB!B22)","v":0}]
[null,null,null,null,null,null,null,null,null,null,null,null,null,null,null,null,null,null,null,null,null,null,null,"Bénin",null,{"$f":"COUNTIFS(ClientDonnée[Nationalité],DB!B23)","v":0}]
[null,null,null,null,null,null,null,null,null,null,null,null,null,null,null,null,null,null,null,null,null,null,null,"Bhoutan",null,{"$f":"COUNTIFS(ClientDonnée[Nationalité],DB!B24)","v":0}]
[null,null,null,null,null,null,null,null,null,null,null,null,null,null,null,null,null,null,null,null,null,null,null,"Biélorussie",null,{"$f":"COUNTIFS(ClientDonnée[Nationalité],DB!B25)","v":0}]
[null,null,null,null,null,null,null,null,null,null,null,null,null,null,null,null,null,null,null,null,null,null,null,"Birmanie",null,{"$f":"COUNTIFS(ClientDonnée[Nationalité],DB!B26)","v":0}]
[null,null,null,null,null,null,null,null,null,null,null,null,null,null,null,null,null,null,null,null,null,null,null,"Bolivie",null,{"$f":"COUNTIFS(ClientDonnée[Nationalité],DB!B27)","v":0}]
[null,null,null,null,null,null,null,null,null,null,null,null,null,null,null,null,null,null,null,null,null,null,null,"Bosnie-Herzégovine",null,{"$f":"COUNTIFS(ClientDonnée[Nationalité],DB!B28)","v":0}]
[null,null,null,null,null,null,null,null,null,null,null,null,null,null,null,null,null,null,null,null,null,null,null,"Botswana",null,{"$f":"COUNTIFS(ClientDonnée[Nationalité],DB!B29)","v":0}]
[null,null,null,null,null,null,null,null,null,null,null,null,null,null,null,null,null,null,null,null,null,null,null,"Brésil",null,{"$f":"COUNTIFS(ClientDonnée[Nationalité],DB!B30)","v":0}]
[null,null,null,null,null,null,null,null,null,null,null,null,null,null,null,null,null,null,null,null,null,null,null,"Brunei",null,{"$f":"COUNTIFS(ClientDonnée[Nationalité],DB!B31)","v":0}]
[null,null,null,null,null,null,null,null,null,null,null,null,null,null,null,null,null,null,null,null,null,null,null,"Bulgarie",null,{"$f":"COUNTIFS(ClientDonnée[Nationalité],DB!B32)","v":0}]
[null,null,null,null,null,null,null,null,null,null,null,null,null,null,null,null,null,null,null,null,null,null,null,"Burkina Faso",null,{"$f":"COUNTIFS(ClientDonnée[Nationalité],DB!B33)","v":0}]
[null,null,null,null,null,null,null,null,null,null,null,null,null,null,null,null,null,null,null,null,null,null,null,"Burundi",null,{"$f":"COUNTIFS(ClientDonnée[Nationalité],DB!B34)","v":0}]
[null,null,null,null,null,null,null,null,null,null,null,null,null,null,null,null,null,null,null,null,null,null,null,"Cambodge",null,{"$f":"COUNTIFS(ClientDonnée[Nationalité],DB!B35)","v":0}]
[null,null,null,null,null,null,null,null,null,null,null,null,null,null,null,null,null,null,null,null,null,null,null,"Cameroun",null,{"$f":"COUNTIFS(ClientDonnée[Nationalité],DB!B36)","v":0}]
[null,null,null,null,null,null,null,null,null,null,null,null,null,null,null,null,null,null,null,null,null,null,null,"Canada",null,{"$f":"COUNTIFS(ClientDonnée[Nationalité],DB!B37)","v":0}]
[null,null,null,null,null,null,null,null,null,null,null,null,null,null,null,null,null,null,null,null,null,null,null,"Cap-Vert",null,{"$f":"COUNTIFS(ClientDonnée[Nationalité],DB!B38)","v":0}]
[null,null,null,null,null,null,null,null,null,null,null,null,null,null,null,null,null,null,null,null,null,null,null,"Chili",null,{"$f":"COUNTIFS(ClientDonnée[Nationalité],DB!B39)","v":0}]
[null,null,null,null,null,null,null,null,null,null,null,null,null,null,null,null,null,null,null,null,null,null,null,"Chine",null,{"$f":"COUNTIFS(ClientDonnée[Nationalité],DB!B40)","v":0}]
[null,null,null,null,null,null,null,null,null,null,null,null,null,null,null,null,null,null,null,null,null,null,null,"Chypre",null,{"$f":"COUNTIFS(ClientDonnée[Nationalité],DB!B41)","v":0}]
[null,null,null,null,null,null,null,null,null,null,null,null,null,null,null,null,null,null,null,null,null,null,null,"Colombie",null,{"$f":"COUNTIFS(ClientDonnée[Nationalité],DB!B42)","v":0}]
[null,null,null,null,null,null,null,null,null,null,null,null,null,null,null,null,null,null,null,null,null,null,null,"Comores",null,{"$f":"COUNTIFS(ClientDonnée[Nationalité],DB!B43)","v":0}]
[null,null,null,null,null,null,null,null,null,null,null,null,null,null,null,null,null,null,null,null,null,null,null,"Congo",null,{"$f":"COUNTIFS(ClientDonnée[Nationalité],DB!B44)","v":0}]
[null,null,null,null,null,null,null,null,null,null,null,null,null,null,null,null,null,null,null,null,null,null,null,"Corée du Nord",null,{"$f":"COUNTIFS(ClientDonnée[Nationalité],DB!B45)","v":0}]
[null,null,null,null,null,null,null,null,null,null,null,null,null,null,null,null,null,null,null,null,null,null,null,"Corée du Sud",null,{"$f":"COUNTIFS(ClientDonnée[Nationalité],DB!B46)","v":0}]
[null,null,null,null,null,null,null,null,null,null,null,null,null,null,null,null,null,null,null,null,null,null,null,"Costa Rica",null,{"$f":"COUNTIFS(ClientDonnée[Nationalité],DB!B47)","v":0}]
[null,null,null,null,null,null,null,null,null,null,null,null,null,null,null,null,null,null,null,null,null,null,null,"Côte d'Ivoire",null,{"$f":"COUNTIFS(ClientDonnée[Nationalité],DB!B48)","v":0}]
[null,null,null,null,null,null,null,null,null,null,null,null,null,null,null,null,null,null,null,null,null,null,null,"Croatie",null,{"$f":"COUNTIFS(ClientDonnée[Nationalité],DB!B49)","v":0}]
[null,null,null,null,null,null,null,null,null,null,null,null,null,null,null,null,null,null,null,null,null,null,null,"Cuba",null,{"$f":"COUNTIFS(ClientDonnée[Nationalité],DB!B50)","v":0}]
[null,null,null,null,null,null,null,null,null,null,null,null,null,null,null,null,null,null,null,null,null,null,null,"Danemark",null,{"$f":"COUNTIFS(ClientDonnée[Nationalité],DB!B51)","v":0}]
[null,null,null,null,null,null,null,null,null,null,null,null,null,null,null,null,null,null,null,null,null,null,null,"Djibouti",null,{"$f":"COUNTIFS(ClientDonnée[Nationalité],DB!B52)","v":0}]
[null,null,null,null,null,null,null,null,null,null,null,null,null,null,null,null,null,null,null,null,null,null,null,"Dominique",null,{"$f":"COUNTIFS(ClientDonnée[Nationalité],DB!B53)","v":0}]
[null,null,null,null,null,null,null,null,null,null,null,null,null,null,null,null,null,null,null,null,null,null,null,"Ecosse",null,{"$f":"COUNTIFS(ClientDonnée[Nationalité],DB!B54)","v":0}]
[null,null,null,null,null,null,null,null,null,null,null,null,null,null,null,null,null,null,null,null,null,null,null,"Egypte",null,{"$f":"COUNTIFS(ClientDonnée[Nationalité],DB!B55)","v":0}]
[null,null,null,null,null,null,null,null,null,null,null,null,null,null,null,null,null,null,null,null,null,null,null,"Emirats Arabes Unis",null,{"$f":"COUNTIFS(ClientDonnée[Nationalité],DB!B56)","v":0}]
[null,null,null,null,null,null,null,null,null,null,null,null,null,null,null,null,null,null,null,null,null,null,null,"Equateur",null,{"$f":"COUNTIFS(ClientDonnée[Nationalité],DB!B57)","v":0}]
[null,null,null,null,null,null,null,null,null,null,null,null,null,null,null,null,null,null,null,null,null,null,null,"Erythrée",null,{"$f":"COUNTIFS(ClientDonnée[Nationalité],DB!B58)","v":0}]
[null,null,null,null,null,null,null,null,null,null,null,null,null,null,null,null,null,null,null,null,null,null,null,"Espagne",null,{"$f":"COUNTIFS(ClientDonnée[Nationalité],DB!B59)","v":0}]
[null,null,null,null,null,null,null,null,null,null,null,null,null,null,null,null,null,null,null,null,null,null,null,"Estonie",null,{"$f":"COUNTIFS(ClientDonnée[Nationalité],DB!B60)","v":0}]
[null,null,null,null,null,null,null,null,null,null,null,null,null,null,null,null,null,null,null,null,null,null,null,"Etats-Unis",null,{"$f":"COUNTIFS(ClientDonnée[Nationalité],DB!B61)","v":0}]
[null,null,null,null,null,null,null,null,null,null,null,null,null,null,null,null,null,null,null,null,null,null,null,"Ethiopie",null,{"$f":"COUNTIFS(ClientDonnée[Nationalité],DB!B62)","v":0}]
[null,null,null,null,null,null,null,null,null,null,null,null,null,null,null,null,null,null,null,null,null,null,null,"Fidji",null,{"$f":"COUNTIFS(ClientDonnée[Nationalité],DB!B63)","v":0}]
[null,null,null,null,null,null,null,null,null,null,null,null,null,null,null,null,null,null,null,null,null,null,null,"Finlande",null,{"$f":"COUNTIFS(ClientDonnée[Nationalité],DB!B64)","v":0}]
[null,null,null,null,null,null,null,null,null,null,null,null,null,null,null,null,null,null,null,null,null,null,null,"France",null,{"$f":"COUNTIFS(ClientDonnée[Nationalité],DB!B65)","v":0}]
[null,null,null,null,null,null,null,null,null,null,null,null,null,null,null,null,null,null,null,null,null,null,null,"Gabon",null,{"$f":"COUNTIFS(ClientDonnée[Nationalité],DB!B66)","v":0}]
[null,null,null,null,null,null,null,null,null,null,null,null,null,null,null,null,null,null,null,null,null,null,null,"Gambie",null,{"$f":"COUNTIFS(ClientDonnée[Nationalité],DB!B67)","v":0}]
[null,null,null,null,null,null,null,null,null,null,null,null,null,null,null,null,null,null,null,null,null,null,null,"Géorgie",null,{"$f":"COUNTIFS(ClientDonnée[Nationalité],DB!B68)","v":0}]
[null,null,null,null,null,null,null,null,null,null,null,null,null,null,null,null,null,null,null,null,null,null,null,"Ghana",null,{"$f":"COUNTIFS(ClientDonnée[Nationalité],DB!B69)","v":0}]
[null,null,null,null,null,null,null,null,null,null,null,null,null,null,null,null,null,null,null,null,null,null,null,"Grèce",null,{"$f":"COUNTIFS(ClientDonnée[Nationalité],DB!B70)","v":0}]
[null,null,null,null,null,null,null,null,null,null,null,null,null,null,null,null,null,null,null,null,null,null,null,"Grenade",null,{"$f":"COUNTIFS(ClientDonnée[Nationalité],DB!B71)","v":0}]
[null,null,null,null,null,null,null,null,null,null,null,null,null,null,null,null,null,null,null,null,null,null,null,"Guatemala",null,{"$f":"COUNTIFS(ClientDonnée[Nationalité],DB!B72)","v":0}]
[null,null,null,null,null,null,null,null,null,null,null,null,null,null,null,null,null,null,null,null,null,null,null,"Guinée",null,{"$f":"COUNTIFS(ClientDonnée[Nationalité],DB!B73)","v":0}]
[null,null,null,null,null,null,null,null,null,null,null,null,null,null,null,null,null,null,null,null,null,null,null,"Guinée équatoriale",null,{"$f":"COUNTIFS(ClientDonnée[Nationalité],DB!B74)","v":0}]
[null,null,null,null,null,null,null,null,null,null,null,null,null,null,null,null,null,null,null,null,null,null,null,"Guinée-Bissau",null,{"$f":"COUNTIFS(ClientDonnée[Nationalité],DB!B75)","v":0}]
[null,null,null,null,null,null,null,null,null,null,null,null,null,null,null,null,null,null,null,null,null,null,null,"Guyana",null,{"$f":"COUNTIFS(ClientDonnée[Nationalité],DB!B76)","v":0}]
[null,null,null,null,null,null,null,null,null,null,null,null,null,null,null,null,null,null,null,null,null,null,null,"Haïti",null,{"$f":"COUNTIFS(ClientDonnée[Nationalité],DB!B77)","v":0}]
[null,null,null,null,null,null,null,null,null,null,null,null,null,null,null,null,null,null,null,null,null,null,null,"Honduras",null,{"$f":"COUNTIFS(ClientDonnée[Nationalité],DB!B78)","v":0}]
[null,null,null,null,null,null,null,null,null,null,null,null,null,null,null,null,null,null,null,null,null,null,null,"Hongrie",null,{"$f":"COUNTIFS(ClientDonnée[Nationalité],DB!B79)","v":0}]
[null,null,null,null,null,null,null,null,null,null,null,null,null,null,null,null,null,null,null,null,null,null,null,"île Maurice",null,{"$f":"COUNTIFS(ClientDonnée[Nationalité],DB!B80)","v":0}]
[null,null,null,null,null,null,null,null,null,null,null,null,null,null,null,null,null,null,null,null,null,null,null,"Inde",null,{"$f":"COUNTIFS(ClientDonnée[Nationalité],DB!B81)","v":0}]
[null,null,null,null,null,null,null,null,null,null,null,null,null,null,null,null,null,null,null,null,null,null,null,"Indonésie",null,{"$f":"COUNTIFS(ClientDonnée[Nationalité],DB!B82)","v":0}]
[null,null,null,null,null,null,null,null,null,null,null,null,null,null,null,null,null,null,null,null,null,null,null,"Irak",null,{"$f":"COUNTIFS(ClientDonnée[Nationalité],DB!B83)","v":0}]
[null,null,null,null,null,null,null,null,null,null,null,null,null,null,null,null,null,null,null,null,null,null,null,"Iran",null,{"$f":"COUNTIFS(ClientDonnée[Nationalité],DB!B84)","v":0}]
[null,null,null,null,null,null,null,null,null,null,null,null,null,null,null,null,null,null,null,null,null,null,null,"Irlande",null,{"$f":"COUNTIFS(ClientDonnée[Nationalité],DB!B85)","v":0}]
[null,null,null,null,null,null,null,null,null,null,null,null,null,null,null,null,null,null,null,null,null,null,null,"Irlande du Nord",null,{"$f":"COUNTIFS(ClientDonnée[Nationalité],DB!B86)","v":0}]
[null,null,null,null,null,null,null,null,null,null,null,null,null,null,null,null,null,null,null,null,null,null,null,"Islande",null,{"$f":"COUNTIFS(ClientDonnée[Nationalité],DB!B87)","v":0}]
[null,null,null,null,null,null,null,null,null,null,null,null,null,null,null,null,null,null,null,null,null,null,null,"Israël",null,{"$f":"COUNTIFS(ClientDonnée[Nationalité],DB!B88)","v":0}]
[null,null,null,null,null,null,null,null,null,null,null,null,null,null,null,null,null,null,null,null,null,null,null,"Italie",null,{"$f":"COUNTIFS(ClientDonnée[Nationalité],DB!B89)","v":0}]
[null,null,null,null,null,null,null,null,null,null,null,null,null,null,null,null,null,null,null,null,null,null,null,"Jamaïque",null,{"$f":"COUNTIFS(ClientDonnée[Nationalité],DB!B90)","v":0}]
[null,null,null,null,null,null,null,null,null,null,null,null,null,null,null,null,null,null,null,null,null,null,null,"Japon",null,{"$f":"COUNTIFS(ClientDonnée[Nationalité],DB!B91)","v":0}]
[null,null,null,null,null,null,null,null,null,null,null,null,null,null,null,null,null,null,null,null,null,null,null,"Jordanie",null,{"$f":"COUNTIFS(ClientDonnée[Nationalité],DB!B92)","v":0}]
[null,null,null,null,null,null,null,null,null,null,null,null,null,null,null,null,null,null,null,null,null,null,null,"Kazakhstan",null,{"$f":"COUNTIFS(ClientDonnée[Nationalité],DB!B93)","v":0}]
[null,null,null,null,null,null,null,null,null,null,null,null,null,null,null,null,null,null,null,null,null,null,null,"Kenya",null,{"$f":"COUNTIFS(ClientDonnée[Nationalité],DB!B94)","v":0}]
[null,null,null,null,null,null,null,null,null,null,null,null,null,null,null,null,null,null,null,null,null,null,null,"Kirghizistan",null,{"$f":"COUNTIFS(ClientDonnée[Nationalité],DB!B95)","v":0}]
[null,null,null,null,null,null,null,null,null,null,null,null,null,null,null,null,null,null,null,null,null,null,null,"Kiribati",null,{"$f":"COUNTIFS(ClientDonnée[Nationalité],DB!B96)","v":0}]
[null,null,null,null,null,null,null,null,null,null,null,null,null,null,null,null,null,null,null,null,null,null,null,"Kosovo",null,{"$f":"COUNTIFS(ClientDonnée[Nationalité],DB!B97)","v":0}]
[null,null,null,null,null,null,null,null,null,null,null,null,null,null,null,null,null,null,null,null,null,null,null,"Koweït",null,{"$f":"COUNTIFS(ClientDonnée[Nationalité],DB!B98)","v":0}]
[null,null,null,null,null,null,null,null,null,null,null,null,null,null,null,null,null,null,null,null,null,null,null,"Laos",null,{"$f":"COUNTIFS(ClientDonnée[Nationalité],DB!B99)","v":0}]
[null,null,null,null,null,null,null,null,null,null,null,null,null,null,null,null,null,null,null,null,null,null,null,"Lesotho",null,{"$f":"COUNTIFS(ClientDonnée[Nationalité],DB!B100)","v":0}]
[null,null,null,null,null,null,null,null,null,null,null,null,null,null,null,null,null,null,null,null,null,null,null,"Lettonie",null,{"$f":"COUNTIFS(ClientDonnée[Nationalité],DB!B101)","v":0}]
[null,null,null,null,null,null,null,null,null,null,null,null,null,null,null,null,null,null,null,null,null,null,null,"Liban",null,{"$f":"COUNTIFS(ClientDonnée[Nationalité],DB!B102)","v":0}]
[null,null,null,null,null,null,null,null,null,null,null,null,null,null,null,null,null,null,null,null,null,null,null,"Liberia",null,{"$f":"COUNTIFS(ClientDonnée[Nationalité],DB!B103)","v":0}]
[null,null,null,null,null,null,null,null,null,null,null,null,null,null,null,null,null,null,null,null,null,null,null,"Libye",null,{"$f":"COUNTIFS(ClientDonnée[Nationalité],DB!B104)","v":0}]
[null,null,null,null,null,null,null,null,null,null,null,null,null,null,null,null,null,null,null,null,null,null,null,"Liechtenstein",null,{"$f":"COUNTIFS(ClientDonnée[Nationalité],DB!B105)","v":0}]
[null,null,null,null,null,null,null,null,null,null,null,null,null,null,null,null,null,null,null,null,null,null,null,"Lituanie",null,{"$f":"COUNTIFS(ClientDonnée[Nationalité],DB!B106)","v":0}]
[null,null,null,null,null,null,null,null,null,null,null,null,null,null,null,null,null,null,null,null,null,null,null,"Luxembourg",null,{"$f":"COUNTIFS(ClientDonnée[Nationalité],DB!B107)","v":0}]
[null,null,null,null,null,null,null,null,null,null,null,null,null,null,null,null,null,null,null,null,null,null,null,"Macédoine",null,{"$f":"COUNTIFS(ClientDonnée[Nationalité],DB!B108)","v":0}]
[null,null,null,null,null,null,null,null,null,null,null,null,null,null,null,null,null,null,null,null,null,null,null,"Madagascar",null,{"$f":"COUNTIFS(ClientDonnée[Nationalité],DB!B109)","v":0}]
[null,null,null,null,null,null,null,null,null,null,null,null,null,null,null,null,null,null,null,null,null,null,null,"Malaisie",null,{"$f":"COUNTIFS(ClientDonnée[Nationalité],DB!B110)","v":0}]
[null,null,null,null,null,null,null,null,null,null,null,null,null,null,null,null,null,null,null,null,null,null,null,"Malawi",null,{"$f":"COUNTIFS(ClientDonnée[Nationalité],DB!B111)","v":0}]
[null,null,null,null,null,null,null,null,null,null,null,null,null,null,null,null,null,null,null,null,null,null,null,"Maldives",null,{"$f":"COUNTIFS(ClientDonnée[Nationalité],DB!B112)","v":0}]
[null,null,null,null,null,null,null,null,null,null,null,null,null,null,null,null,null,null,null,null,null,null,null,"Mali",null,{"$f":"COUNTIFS(ClientDonnée[Nationalité],DB!B113)","v":0}]
[null,null,null,null,null,null,null,null,null,null,null,null,null,null,null,null,null,null,null,null,null,null,null,"Malte",null,{"$f":"COUNTIFS(ClientDonnée[Nationalité],DB!B114)","v":0}]
[null,null,null,null,null,null,null,null,null,null,null,null,null,null,null,null,null,null,null,null,null,null,null,"Maroc",null,{"$f":"COUNTIFS(ClientDonnée[Nationalité],DB!B115)","v":0}]
[null,null,null,null,null,null,null,null,null,null,null,null,null,null,null,null,null,null,null,null,null,null,null,"Marshall",null,{"$f":"COUNTIFS(ClientDonnée[Nationalité],DB!B116)","v":0}]
[null,null,null,null,null,null,null,null,null,null,null,null,null,null,null,null,null,null,null,null,null,null,null,"Mauritanie",null,{"$f":"COUNTIFS(ClientDonnée[Nationalité],DB!B117)","v":0}]
[null,null,null,null,null,null,null,null,null,null,null,null,null,null,null,null,null,null,null,null,null,null,null,"Mexique",null,{"$f":"COUNTIFS(ClientDonnée[Nationalité],DB!B118)","v":0}]
[null,null,null,null,null,null,null,null,null,null,null,null,null,null,null,null,null,null,null,null,null,null,null,"Micronésie",null,{"$f":"COUNTIFS(ClientDonnée[Nationalité],DB!B119)","v":0}]
[null,null,null,null,null,null,null,null,null,null,null,null,null,null,null,null,null,null,null,null,null,null,null,"Moldavie",null,{"$f":"COUNTIFS(ClientDonnée[Nationalité],DB!B120)","v":0}]
[null,null,null,null,null,null,null,null,null,null,null,null,null,null,null,null,null,null,null,null,null,null,null,"Monaco",null,{"$f":"COUNTIFS(ClientDonnée[Nationalité],DB!B121)","v":0}]
[null,null,null,null,null,null,null,null,null,null,null,null,null,null,null,null,null,null,null,null,null,null,null,"Mongolie",null,{"$f":"COUNTIFS(ClientDonnée[Nationalité],DB!B122)","v":0}]
[null,null,null,null,null,null,null,null,null,null,null,null,null,null,null,null,null,null,null,null,null,null,null,"Monténégro",null,{"$f":"COUNTIFS(ClientDonnée[Nationalité],DB!B123)","v":0}]
[null,null,null,null,null,null,null,null,null,null,null,null,null,null,null,null,null,null,null,null,null,null,null,"Mozambique",null,{"$f":"COUNTIFS(ClientDonnée[Nationalité],DB!B124)","v":0}]
[null,null,null,null,null,null,null,null,null,null,null,null,null,null,null,null,null,null,null,null,null,null,null,"Namibie",null,{"$f":"COUNTIFS(ClientDonnée[Nationalité],DB!B125)","v":0}]
[null,null,null,null,null,null,null,null,null,null,null,null,null,null,null,null,null,null,null,null,null,null,null,"Nauru",null,{"$f":"COUNTIFS(ClientDonnée[Nationalité],DB!B126)","v":0}]
[null,null,null,null,null,null,null,null,null,null,null,null,null,null,null,null,null,null,null,null,null,null,null,"Népal",null,{"$f":"COUNTIFS(ClientDonnée[Nationalité],DB!B127)","v":0}]
[null,null,null,null,null,null,null,null,null,null,null,null,null,null,null,null,null,null,null,null,null,null,null,"Nicaragua",null,{"$f":"COUNTIFS(ClientDonnée[Nationalité],DB!B128)","v":0}]
[null,null,null,null,null,null,null,null,null,null,null,null,null,null,null,null,null,null,null,null,null,null,null,"Niger",null,{"$f":"COUNTIFS(ClientDonnée[Nationalité],DB!B129)","v":0}]
[null,null,null,null,null,null,null,null,null,null,null,null,null,null,null,null,null,null,null,null,null,null,null,"Nigeria",null,{"$f":"COUNTIFS(ClientDonnée[Nationalité],DB!B130)","v":0}]
[null,null,null,null,null,null,null,null,null,null,null,null,null,null,null,null,null,null,null,null,null,null,null,"Norvège",null,{"$f":"COUNTIFS(ClientDonnée[Nationalité],DB!B131)","v":0}]
[null,null,null,null,null,null,null,null,null,null,null,null,null,null,null,null,null,null,null,null,null,null,null,"Nouvelle-Zélande",null,{"$f":"COUNTIFS(ClientDonnée[Nationalité],DB!B132)","v":0}]
[null,null,null,null,null,null,null,null,null,null,null,null,null,null,null,null,null,null,null,null,null,null,null,"Oman",null,{"$f":"COUNTIFS(ClientDonnée[Nationalité],DB!B133)","v":0}]
[null,null,null,null,null,null,null,null,null,null,null,null,null,null,null,null,null,null,null,null,null,null,null,"Ouganda",null,{"$f":"COUNTIFS(ClientDonnée[Nationalité],DB!B134)","v":0}]
[null,null,null,null,null,null,null,null,null,null,null,null,null,null,null,null,null,null,null,null,null,null,null,"Ouzbékistan",null,{"$f":"COUNTIFS(ClientDonnée[Nationalité],DB!B135)","v":0}]
[null,null,null,null,null,null,null,null,null,null,null,null,null,null,null,null,null,null,null,null,null,null,null,"Pakistan",null,{"$f":"COUNTIFS(ClientDonnée[Nationalité],DB!B136)","v":0}]
[null,null,null,null,null,null,null,null,null,null,null,null,null,null,null,null,null,null,null,null,null,null,null,"Palaos",null,{"$f":"COUNTIFS(ClientDonnée[Nationalité],DB!B137)","v":0}]
[null,null,null,null,null,null,null,null,null,null,null,null,null,null,null,null,null,null,null,null,null,null,null,"Panama",null,{"$f":"COUNTIFS(ClientDonnée[Nationalité],DB!B138)","v":0}]
[null,null,null,null,null,null,null,null,null,null,null,null,null,null,null,null,null,null,null,null,null,null,null,"Papouasie-Nouvelle-Guinée",null,{"$f":"COUNTIFS(ClientDonnée[Nationalité],DB!B139)","v":0}]
[null,null,null,null,null,null,null,null,null,null,null,null,null,null,null,null,null,null,null,null,null,null,null,"Paraguay",null,{"$f":"COUNTIFS(ClientDonnée[Nationalité],DB!B140)","v":0}]
[null,null,null,null,null,null,null,null,null,null,null,null,null,null,null,null,null,null,null,null,null,null,null,"Pays de Galles",null,{"$f":"COUNTIFS(ClientDonnée[Nationalité],DB!B141)","v":0}]
[null,null,null,null,null,null,null,null,null,null,null,null,null,null,null,null,null,null,null,null,null,null,null,"Pays-Bas",null,{"$f":"COUNTIFS(ClientDonnée[Nationalité],DB!B142)","v":0}]
[null,null,null,null,null,null,null,null,null,null,null,null,null,null,null,null,null,null,null,null,null,null,null,"Pérou",null,{"$f":"COUNTIFS(ClientDonnée[Nationalité],DB!B143)","v":0}]
[null,null,null,null,null,null,null,null,null,null,null,null,null,null,null,null,null,null,null,null,null,null,null,"Philippines",null,{"$f":"COUNTIFS(ClientDonnée[Nationalité],DB!B144)","v":0}]
[null,null,null,null,null,null,null,null,null,null,null,null,null,null,null,null,null,null,null,null,null,null,null,"Pologne",null,{"$f":"COUNTIFS(ClientDonnée[Nationalité],DB!B145)","v":0}]
[null,null,null,null,null,null,null,null,null,null,null,null,null,null,null,null,null,null,null,null,null,null,null,"Portugal",null,{"$f":"COUNTIFS(ClientDonnée[Nationalité],DB!B146)","v":0}]
[null,null,null,null,null,null,null,null,null,null,null,null,null,null,null,null,null,null,null,null,null,null,null,"Qatar",null,{"$f":"COUNTIFS(ClientDonnée[Nationalité],DB!B147)","v":0}]
[null,null,null,null,null,null,null,null,null,null,null,null,null,null,null,null,null,null,null,null,null,null,null,"République Centrafricaine",null,{"$f":"COUNTIFS(ClientDonnée[Nationalité],DB!B148)","v":0}]
[null,null,null,null,null,null,null,null,null,null,null,null,null,null,null,null,null,null,null,null,null,null,null,"République Démocratique du Congo",null,{"$f":"COUNTIFS(ClientDonnée[Nationalité],DB!B149)","v":0}]
[null,null,null,null,null,null,null,null,null,null,null,null,null,null,null,null,null,null,null,null,null,null,null,"République Dominicaine",null,{"$f":"COUNTIFS(ClientDonnée[Nationalité],DB!B150)","v":0}]
[null,null,null,null,null,null,null,null,null,null,null,null,null,null,null,null,null,null,null,null,null,null,null,"République Tchèque",null,{"$f":"COUNTIFS(ClientDonnée[Nationalité],DB!B151)","v":0}]
[null,null,null,null,null,null,null,null,null,null,null,null,null,null,null,null,null,null,null,null,null,null,null,"Roumanie",null,{"$f":"COUNTIFS(ClientDonnée[Nationalité],DB!B152)","v":0}]
[null,null,null,null,null,null,null,null,null,null,null,null,null,null,null,null,null,null,null,null,null,null,null,"Russie",null,{"$f":"COUNTIFS(ClientDonnée[Nationalité],DB!B153)","v":0}]
[null,null,null,null,null,null,null,null,null,null,null,null,null,null,null,null,null,null,null,null,null,null,null,"Rwanda",null,{"$f":"COUNTIFS(ClientDonnée[Nationalité],DB!B154)","v":0}]
[null,null,null,null,null,null,null,null,null,null,null,null,null,null,null,null,null,null,null,null,null,null,null,"Sainte-Lucie",null,{"$f":"COUNTIFS(ClientDonnée[Nationalité],DB!B155)","v":0}]
[null,null,null,null,null,null,null,null,null,null,null,null,null,null,null,null,null,null,null,null,null,null,null,"Saint-Kitts-et-Nevis",null,{"$f":"COUNTIFS(ClientDonnée[Nationalité],DB!B156)","v":0}]
[null,null,null,null,null,null,null,null,null,null,null,null,null,null,null,null,null,null,null,null,null,null,null,"Saint-Marin",null,{"$f":"COUNTIFS(ClientDonnée[Nationalité],DB!B157)","v":0}]
[null,null,null,null,null,null,null,null,null,null,null,null,null,null,null,null,null,null,null,null,null,null,null,"Saint-Vincent-et-les-Grenadines",null,{"$f":"COUNTIFS(ClientDonnée[Nationalité],DB!B158)","v":0}]
[null,null,null,null,null,null,null,null,null,null,null,null,null,null,null,null,null,null,null,null,null,null,null,"Salomon",null,{"$f":"COUNTIFS(ClientDonnée[Nationalité],DB!B159)","v":0}]
[null,null,null,null,null,null,null,null,null,null,null,null,null,null,null,null,null,null,null,null,null,null,null,"Salvador",null,{"$f":"COUNTIFS(ClientDonnée[Nationalité],DB!B160)","v":0}]
[null,null,null,null,null,null,null,null,null,null,null,null,null,null,null,null,null,null,null,null,null,null,null,"Samoa",null,{"$f":"COUNTIFS(ClientDonnée[Nationalité],DB!B161)","v":0}]
[null,null,null,null,null,null,null,null,null,null,null,null,null,null,null,null,null,null,null,null,null,null,null,"São Tomé et Príncipe",null,{"$f":"COUNTIFS(ClientDonnée[Nationalité],DB!B162)","v":0}]
[null,null,null,null,null,null,null,null,null,null,null,null,null,null,null,null,null,null,null,null,null,null,null,"Sénégal",null,{"$f":"COUNTIFS(ClientDonnée[Nationalité],DB!B163)","v":0}]
[null,null,null,null,null,null,null,null,null,null,null,null,null,null,null,null,null,null,null,null,null,null,null,"Serbie",null,{"$f":"COUNTIFS(ClientDonnée[Nationalité],DB!B164)","v":0}]
[null,null,null,null,null,null,null,null,null,null,null,null,null,null,null,null,null,null,null,null,null,null,null,"Seychelles",null,{"$f":"COUNTIFS(ClientDonnée[Nationalité],DB!B165)","v":0}]
[null,null,null,null,null,null,null,null,null,null,null,null,null,null,null,null,null,null,null,null,null,null,null,"Sierra Leone",null,{"$f":"COUNTIFS(ClientDonnée[Nationalité],DB!B166)","v":0}]
[null,null,null,null,null,null,null,null,null,null,null,null,null,null,null,null,null,null,null,null,null,null,null,"Singapour",null,{"$f":"COUNTIFS(ClientDonnée[Nationalité],DB!B167)","v":0}]
[null,null,null,null,null,null,null,null,null,null,null,null,null,null,null,null,null,null,null,null,null,null,null,"Slovaquie",null,{"$f":"COUNTIFS(ClientDonnée[Nationalité],DB!B168)","v":0}]
[null,null,null,null,null,null,null,null,null,null,null,null,null,null,null,null,null,null,null,null,null,null,null,"Slovénie",null,{"$f":"COUNTIFS(ClientDonnée[Nationalité],DB!B169)","v":0}]
[null,null,null,null,null,null,null,null,null,null,null,null,null,null,null,null,null,null,null,null,null,null,null,"Somalie",null,{"$f":"COUNTIFS(ClientDonnée[Nationalité],DB!B170)","v":0}]
[null,null,null,null,null,null,null,null,null,null,null,null,null,null,null,null,null,null,null,null,null,null,null,"Soudan",null,{"$f":"COUNTIFS(ClientDonnée[Nationalité],DB!B171)","v":0}]
[null,null,null,null,null,null,null,null,null,null,null,null,null,null,null,null,null,null,null,null,null,null,null,"Sri Lanka",null,{"$f":"COUNTIFS(ClientDonnée[Nationalité],DB!B172)","v":0}]
[null,null,null,null,null,null,null,null,null,null,null,null,null,null,null,null,null,null,null,null,null,null,null,"Suède",null,{"$f":"COUNTIFS(ClientDonnée[Nationalité],DB!B173)","v":0}]
[null,null,null,null,null,null,null,null,null,null,null,null,null,null,null,null,null,null,null,null,null,null,null,"Suisse",null,{"$f":"COUNTIFS(ClientDonnée[Nationalité],DB!B174)","v":0}]
[null,null,null,null,null,null,null,null,null,null,null,null,null,null,null,null,null,null,null,null,null,null,null,"Suriname",null,{"$f":"COUNTIFS(ClientDonnée[Nationalité],DB!B175)","v":0}]
[null,null,null,null,null,null,null,null,null,null,null,null,null,null,null,null,null,null,null,null,null,null,null,"Swaziland",null,{"$f":"COUNTIFS(ClientDonnée[Nationalité],DB!B176)","v":0}]
[null,null,null,null,null,null,null,null,null,null,null,null,null,null,null,null,null,null,null,null,null,null,null,"Syrie",null,{"$f":"COUNTIFS(ClientDonnée[Nationalité],DB!B177)","v":0}]
[null,null,null,null,null,null,null,null,null,null,null,null,null,null,null,null,null,null,null,null,null,null,null,"Tadjikistan",null,{"$f":"COUNTIFS(ClientDonnée[Nationalité],DB!B178)","v":0}]
[null,null,null,null,null,null,null,null,null,null,null,null,null,null,null,null,null,null,null,null,null,null,null,"Taïwan",null,{"$f":"COUNTIFS(ClientDonnée[Nationalité],DB!B179)","v":0}]
[null,null,null,null,null,null,null,null,null,null,null,null,null,null,null,null,null,null,null,null,null,null,null,"Tanzanie",null,{"$f":"COUNTIFS(ClientDonnée[Nationalité],DB!B180)","v":0}]
[null,null,null,null,null,null,null,null,null,null,null,null,null,null,null,null,null,null,null,null,null,null,null,"Tchad",null,{"$f":"COUNTIFS(ClientDonnée[Nationalité],DB!B181)","v":0}]
[null,null,null,null,null,null,null,null,null,null,null,null,null,null,null,null,null,null,null,null,null,null,null,"Thaïlande",null,{"$f":"COUNTIFS(ClientDonnée[Nationalité],DB!B182)","v":0}]
[null,null,null,null,null,null,null,null,null,null,null,null,null,null,null,null,null,null,null,null,null,null,null,"Timor-Oriental",null,{"$f":"COUNTIFS(ClientDonnée[Nationalité],DB!B183)","v":0}]
[null,null,null,null,null,null,null,null,null,null,null,null,null,null,null,null,null,null,null,null,null,null,null,"Togo",null,{"$f":"COUNTIFS(ClientDonnée[Nationalité],DB!B184)","v":0}]
[null,null,null,null,null,null,null,null,null,null,null,null,null,null,null,null,null,null,null,null,null,null,null,"Tonga",null,{"$f":"COUNTIFS(ClientDonnée[Nationalité],DB!B185)","v":0}]
[null,null,null,null,null,null,null,null,null,null,null,null,null,null,null,null,null,null,null,null,null,null,null,"Trinité-et-Tobago",null,{"$f":"COUNTIFS(ClientDonnée[Nationalité],DB!B186)","v":0}]
[null,null,null,null,null,null,null,null,null,null,null,null,null,null,null,null,null,null,null,null,null,null,null,"Tunisie",null,{"$f":"COUNTIFS(ClientDonnée[Nationalité],DB!B187)","v":0}]
[null,null,null,null,null,null,null,null,null,null,null,null,null,null,null,null,null,null,null,null,null,null,null,"Turkménistan",null,{"$f":"COUNTIFS(ClientDonnée[Nationalité],DB!B188)","v":0}]
[null,null,null,null,null,null,null,null,null,null,null,null,null,null,null,null,null,null,null,null,null,null,null,"Turquie",null,{"$f":"COUNTIFS(ClientDonnée[Nationalité],DB!B189)","v":0}]
[null,null,null,null,null,null,null,null,null,null,null,null,null,null,null,null,null,null,null,null,null,null,null,"Tuvalu",null,{"$f":"COUNTIFS(ClientDonnée[Nationalité],DB!B190)","v":0}]
[null,null,null,null,null,null,null,null,null,null,null,null,null,null,null,null,null,null,null,null,null,null,null,"Ukraine",null,{"$f":"COUNTIFS(ClientDonnée[Nationalité],DB!B191)","v":0}]
[null,null,null,null,null,null,null,null,null,null,null,null,null,null,null,null,null,null,null,null,null,null,null,"Uruguay",null,{"$f":"COUNTIFS(ClientDonnée[Nationalité],DB!B192)","v":0}]
[null,null,null,null,null,null,null,null,null,null,null,null,null,null,null,null,null,null,null,null,null,null,null,"Vanuatu",null,{"$f":"COUNTIFS(ClientDonnée[Nationalité],DB!B193)","v":0}]
[null,null,null,null,null,null,null,null,null,null,null,null,null,null,null,null,null,null,null,null,null,null,null,"Vatican",null,{"$f":"COUNTIFS(ClientDonnée[Nationalité],DB!B194)","v":0}]
[null,null,null,null,null,null,null,null,null,null,null,null,null,null,null,null,null,null,null,null,null,null,null,"Venezuela",null,{"$f":"COUNTIFS(ClientDonnée[Nationalité],DB!B195)","v":0}]
[null,null,null,null,null,null,null,null,null,null,null,null,null,null,null,null,null,null,null,null,null,null,null,"Viêt Nam",null,{"$f":"COUNTIFS(ClientDonnée[Nationalité],DB!B196)","v":0}]
[null,null,null,null,null,null,null,null,null,null,null,null,null,null,null,null,null,null,null,null,null,null,null,"Yémen",null,{"$f":"COUNTIFS(ClientDonnée[Nationalité],DB!B197)","v":0}]
[null,null,null,null,null,null,null,null,null,null,null,null,null,null,null,null,null,null,null,null,null,null,null,"Zambie",null,{"$f":"COUNTIFS(ClientDonnée[Nationalité],DB!B198)","v":0}]
[null,null,null,null,null,null,null,null,null,null,null,null,null,null,null,null,null,null,null,null,null,null,null,"Zimbabwe",null,{"$f":"COUNTIFS(ClientDonnée[Nationalité],DB!B199)","v":0}]

{"sheet":"Bon plan","index":9,"n_rows":1,"n_cols":1,"rows_kept":1,"cut":false,"hidden":false,"merged":[[0,0,0,19]]}
["Bon Plan"]

{"sheet":"DB","index":10,"n_rows":199,"n_cols":17,"rows_kept":199,"cut":false,"hidden":false,"merged":[]}
["CP","Nationalité","Nouveau Patient","Lieux de vie","Origine ouverture","Sexe","Mutuelle","Commune","Carte id","Revenus","Carte médicale","Sérologie","Type de suivis","Travailleurs","accompagnement",null,"Nationalité"]
["Anderlecht 1070","Afghanistan","Oui","Rue","Social","F","OUI","Anderlecht 1070","OUI","Revenu professionnel","OUI","HIV","Social","Mohammed","OUI",null,"Afghanistan"]
["Auderghem 1160","Afrique du Sud","Non","Appartement privé","Paramédicale","M","NON","Auderghem 1160","NON","RIS","NON","HCV","Paramédical","Mustapha","NON",null,"Afrique du Sud"]
["Berchem 1082","Albanie",null,"Chez un ami","Médicale",null,null,"Berchem 1082",null,"Aide sociale",null,"HBV","Médical","Jean-Phillipe",null,null,"Albanie"]
["Bruxelles 1000","Algérie",null,"Maison d'accueil",null,null,null,"Bruxelles 1000",null,"Manche",null,null,null,"Isabelle",null,null,"Algérie"]
["Etterbeek 1040","Allemagne",null,"Squat",null,null,null,"Etterbeek 1040",null,"Travail au noir",null,null,null,"Bruno",null,null,"Allemagne"]
["Evere 1140","Andorre",null,"autre",null,null,null,"Evere 1140",null,"Sans ressources",null,null,null,"Christopher",null,null,"Andorre"]
["Forest 1190","Angleterre",null,null,null,null,null,"Forest 1190",null,null,null,null,null,"Sophie",null,null,"Angleterre"]
["Ganshoren 1083","Angola",null,null,null,null,null,"Ganshoren 1083",null,null,null,null,null,"Chaimae",null,null,"Angola"]
["Ixelles 1050","Arabie Saoudite",null,null,null,null,null,"Ixelles 1050",null,null,null,null,null,"Anouk",null,null,"Arabie Saoudite"]
["Jette 1090","Argentine",null,null,null,null,null,"Jette 1090",null,null,null,null,null,"Claude",null,null,"Argentine"]
["Koekelberg 1081","Arménie",null,null,null,null,null,"Koekelberg 1081",null,null,null,null,null,"Stagiaire",null,null,"Arménie"]
["Molenbeek 1080","Antigua-et-Barbuda",null,null,null,null,null,"Molenbeek 1080",null,null,null,null,null,"Nicolas",null,null,"Antigua-et-Barbuda"]
["Saint-Gilles 1060","Australie",null,null,null,null,null,"Saint-Gilles 1060",null,null,null,null,null,null,null,null,"Australie"]
["Saint-joss 1210","Autriche",null,null,null,null,null,"Saint-joss 1210",null,null,null,null,null,null,null,null,"Autriche"]
["Schaerbeek 1030","Azerbaïdjan",null,null,null,null,null,"Schaerbeek 1030",null,null,null,null,null,null,null,null,"Azerbaïdjan"]
["Uccle 1180","Bahamas",null,null,null,null,null,"Uccle 1180",null,null,null,null,null,null,null,null,"Bahamas"]
["Watermael 1170","Bahreïn",null,null,null,null,null,"Watermael 1170",null,null,null,null,null,null,null,null,"Bahreïn"]
["Woluwé-St-Lam1200","Bangladesh",null,null,null,null,null,"Woluwé-St-Lam1200",null,null,null,null,null,null,null,null,"Bangladesh"]
["Woluwé-St-pie 1210","Barbade",null,null,null,null,null,"Woluwé-St-pie 1210",null,null,null,null,null,null,null,null,"Barbade"]
["Région Wallone","Belgique",null,null,null,null,null,"Région Wallone",null,null,null,null,null,null,null,null,"Belgique"]
["Région Flammande","Belize",null,null,null,null,null,"Région Flammande",null,null,null,null,null,null,null,null,"Belize"]
["Hors Belgique","Bénin",null,null,null,null,null,"Hors Belgique",null,null,null,null,null,null,null,null,"Bénin"]
[null,"Bhoutan",null,null,null,null,null,null,null,null,null,null,null,null,null,null,"Bhoutan"]
[null,"Biélorussie",null,null,null,null,null,null,null,null,null,null,null,null,null,null,"Biélorussie"]
[null,"Birmanie",null,null,null,null,null,null,null,null,null,null,null,null,null,null,"Birmanie"]
[null,"Bolivie",null,null,null,null,null,null,null,null,null,null,null,null,null,null,"Bolivie"]
[null,"Bosnie-Herzégovine",null,null,null,null,null,null,null,null,null,null,null,null,null,null,"Bosnie-Herzégovine"]
[null,"Botswana",null,null,null,null,null,null,null,null,null,null,null,null,null,null,"Botswana"]
[null,"Brésil",null,null,null,null,null,null,null,null,null,null,null,null,null,null,"Brésil"]
[null,"Brunei",null,null,null,null,null,null,null,null,null,null,null,null,null,null,"Brunei"]
[null,"Bulgarie",null,null,null,null,null,null,null,null,null,null,null,null,null,null,"Bulgarie"]
[null,"Burkina Faso",null,null,null,null,null,null,null,null,null,null,null,null,null,null,"Burkina Faso"]
[null,"Burundi",null,null,null,null,null,null,null,null,null,null,null,null,null,null,"Burundi"]
[null,"Cambodge",null,null,null,null,null,null,null,null,null,null,null,null,null,null,"Cambodge"]
[null,"Cameroun",null,null,null,null,null,null,null,null,null,null,null,null,null,null,"Cameroun"]
[null,"Canada",null,null,null,null,null,null,null,null,null,null,null,null,null,null,"Canada"]
[null,"Cap-Vert",null,null,null,null,null,null,null,null,null,null,null,null,null,null,"Cap-Vert"]
[null,"Chili",null,null,null,null,null,null,null,null,null,null,null,null,null,null,"Chili"]
[null,"Chine",null,null,null,null,null,null,null,null,null,null,null,null,null,null,"Chine"]
[null,"Chypre",null,null,null,null,null,null,null,null,null,null,null,null,null,null,"Chypre"]
[null,"Colombie",null,null,null,null,null,null,null,null,null,null,null,null,null,null,"Colombie"]
[null,"Comores",null,null,null,null,null,null,null,null,null,null,null,null,null,null,"Comores"]
[null,"Congo",null,null,null,null,null,null,null,null,null,null,null,null,null,null,"Congo"]
[null,"Corée du Nord",null,null,null,null,null,null,null,null,null,null,null,null,null,null,"Corée du Nord"]
[null,"Corée du Sud",null,null,null,null,null,null,null,null,null,null,null,null,null,null,"Corée du Sud"]
[null,"Costa Rica",null,null,null,null,null,null,null,null,null,null,null,null,null,null,"Costa Rica"]
[null,"Côte d'Ivoire",null,null,null,null,null,null,null,null,null,null,null,null,null,null,"Côte d'Ivoire"]
[null,"Croatie",null,null,null,null,null,null,null,null,null,null,null,null,null,null,"Croatie"]
[null,"Cuba",null,null,null,null,null,null,null,null,null,null,null,null,null,null,"Cuba"]
[null,"Danemark",null,null,null,null,null,null,null,null,null,null,null,null,null,null,"Danemark"]
[null,"Djibouti",null,null,null,null,null,null,null,null,null,null,null,null,null,null,"Djibouti"]
[null,"Dominique",null,null,null,null,null,null,null,null,null,null,null,null,null,null,"Dominique"]
[null,"Ecosse",null,null,null,null,null,null,null,null,null,null,null,null,null,null,"Ecosse"]
[null,"Egypte",null,null,null,null,null,null,null,null,null,null,null,null,null,null,"Egypte"]
[null,"Emirats Arabes Unis",null,null,null,null,null,null,null,null,null,null,null,null,null,null,"Emirats Arabes Unis"]
[null,"Equateur",null,null,null,null,null,null,null,null,null,null,null,null,null,null,"Equateur"]
[null,"Erythrée",null,null,null,null,null,null,null,null,null,null,null,null,null,null,"Erythrée"]
[null,"Espagne",null,null,null,null,null,null,null,null,null,null,null,null,null,null,"Espagne"]
[null,"Estonie",null,null,null,null,null,null,null,null,null,null,null,null,null,null,"Estonie"]
[null,"Etats-Unis",null,null,null,null,null,null,null,null,null,null,null,null,null,null,"Etats-Unis"]
[null,"Ethiopie",null,null,null,null,null,null,null,null,null,null,null,null,null,null,"Ethiopie"]
[null,"Fidji",null,null,null,null,null,null,null,null,null,null,null,null,null,null,"Fidji"]
[null,"Finlande",null,null,null,null,null,null,null,null,null,null,null,null,null,null,"Finlande"]
[null,"France",null,null,null,null,null,null,null,null,null,null,null,null,null,null,"France"]
[null,"Gabon",null,null,null,null,null,null,null,null,null,null,null,null,null,null,"Gabon"]
[null,"Gambie",null,null,null,null,null,null,null,null,null,null,null,null,null,null,"Gambie"]
[null,"Géorgie",null,null,null,null,null,null,null,null,null,null,null,null,null,null,"Géorgie"]
[null,"Ghana",null,null,null,null,null,null,null,null,null,null,null,null,null,null,"Ghana"]
[null,"Grèce",null,null,null,null,null,null,null,null,null,null,null,null,null,null,"Grèce"]
[null,"Grenade",null,null,null,null,null,null,null,null,null,null,null,null,null,null,"Grenade"]
[null,"Guatemala",null,null,null,null,null,null,null,null,null,null,null,null,null,null,"Guatemala"]
[null,"Guinée",null,null,null,null,null,null,null,null,null,null,null,null,null,null,"Guinée"]
[null,"Guinée équatoriale",null,null,null,null,null,null,null,null,null,null,null,null,null,null,"Guinée équatoriale"]
[null,"Guinée-Bissau",null,null,null,null,null,null,null,null,null,null,null,null,null,null,"Guinée-Bissau"]
[null,"Guyana",null,null,null,null,null,null,null,null,null,null,null,null,null,null,"Guyana"]
[null,"Haïti",null,null,null,null,null,null,null,null,null,null,null,null,null,null,"Haïti"]
[null,"Honduras",null,null,null,null,null,null,null,null,null,null,null,null,null,null,"Honduras"]
[null,"Hongrie",null,null,null,null,null,null,null,null,null,null,null,null,null,null,"Hongrie"]
[null,"île Maurice",null,null,null,null,null,null,null,null,null,null,null,null,null,null,"île Maurice"]
[null,"Inde",null,null,null,null,null,null,null,null,null,null,null,null,null,null,"Inde"]
[null,"Indonésie",null,null,null,null,null,null,null,null,null,null,null,null,null,null,"Indonésie"]
[null,"Irak",null,null,null,null,null,null,null,null,null,null,null,null,null,null,"Irak"]
[null,"Iran",null,null,null,null,null,null,null,null,null,null,null,null,null,null,"Iran"]
[null,"Irlande",null,null,null,null,null,null,null,null,null,null,null,null,null,null,"Irlande"]
[null,"Irlande du Nord",null,null,null,null,null,null,null,null,null,null,null,null,null,null,"Irlande du Nord"]
[null,"Islande",null,null,null,null,null,null,null,null,null,null,null,null,null,null,"Islande"]
[null,"Israël",null,null,null,null,null,null,null,null,null,null,null,null,null,null,"Israël"]
[null,"Italie",null,null,null,null,null,null,null,null,null,null,null,null,null,null,"Italie"]
[null,"Jamaïque",null,null,null,null,null,null,null,null,null,null,null,null,null,null,"Jamaïque"]
[null,"Japon",null,null,null,null,null,null,null,null,null,null,null,null,null,null,"Japon"]
[null,"Jordanie",null,null,null,null,null,null,null,null,null,null,null,null,null,null,"Jordanie"]
[null,"Kazakhstan",null,null,null,null,null,null,null,null,null,null,null,null,null,null,"Kazakhstan"]
[null,"Kenya",null,null,null,null,null,null,null,null,null,null,null,null,null,null,"Kenya"]
[null,"Kirghizistan",null,null,null,null,null,null,null,null,null,null,null,null,null,null,"Kirghizistan"]
[null,"Kiribati",null,null,null,null,null,null,null,null,null,null,null,null,null,null,"Kiribati"]
[null,"Kosovo",null,null,null,null,null,null,null,null,null,null,null,null,null,null,"Kosovo"]
[null,"Koweït",null,null,null,null,null,null,null,null,null,null,null,null,null,null,"Koweït"]
[null,"Laos",null,null,null,null,null,null,null,null,null,null,null,null,null,null,"Laos"]
[null,"Lesotho",null,null,null,null,null,null,null,null,null,null,null,null,null,null,"Lesotho"]
[null,"Lettonie",null,null,null,null,null,null,null,null,null,null,null,null,null,null,"Lettonie"]
[null,"Liban",null,null,null,null,null,null,null,null,null,null,null,null,null,null,"Liban"]
[null,"Liberia",null,null,null,null,null,null,null,null,null,null,null,null,null,null,"Liberia"]
[null,"Libye",null,null,null,null,null,null,null,null,null,null,null,null,null,null,"Libye"]
[null,"Liechtenstein",null,null,null,null,null,null,null,null,null,null,null,null,null,null,"Liechtenstein"]
[null,"Lituanie",null,null,null,null,null,null,null,null,null,null,null,null,null,null,"Lituanie"]
[null,"Luxembourg",null,null,null,null,null,null,null,null,null,null,null,null,null,null,"Luxembourg"]
[null,"Macédoine",null,null,null,null,null,null,null,null,null,null,null,null,null,null,"Macédoine"]
[null,"Madagascar",null,null,null,null,null,null,null,null,null,null,null,null,null,null,"Madagascar"]
[null,"Malaisie",null,null,null,null,null,null,null,null,null,null,null,null,null,null,"Malaisie"]
[null,"Malawi",null,null,null,null,null,null,null,null,null,null,null,null,null,null,"Malawi"]
[null,"Maldives",null,null,null,null,null,null,null,null,null,null,null,null,null,null,"Maldives"]
[null,"Mali",null,null,null,null,null,null,null,null,null,null,null,null,null,null,"Mali"]
[null,"Malte",null,null,null,null,null,null,null,null,null,null,null,null,null,null,"Malte"]
[null,"Maroc",null,null,null,null,null,null,null,null,null,null,null,null,null,null,"Maroc"]
[null,"Marshall",null,null,null,null,null,null,null,null,null,null,null,null,null,null,"Marshall"]
[null,"Mauritanie",null,null,null,null,null,null,null,null,null,null,null,null,null,null,"Mauritanie"]
[null,"Mexique",null,null,null,null,null,null,null,null,null,null,null,null,null,null,"Mexique"]
[null,"Micronésie",null,null,null,null,null,null,null,null,null,null,null,null,null,null,"Micronésie"]
[null,"Moldavie",null,null,null,null,null,null,null,null,null,null,null,null,null,null,"Moldavie"]
[null,"Monaco",null,null,null,null,null,null,null,null,null,null,null,null,null,null,"Monaco"]
[null,"Mongolie",null,null,null,null,null,null,null,null,null,null,null,null,null,null,"Mongolie"]
[null,"Monténégro",null,null,null,null,null,null,null,null,null,null,null,null,null,null,"Monténégro"]
[null,"Mozambique",null,null,null,null,null,null,null,null,null,null,null,null,null,null,"Mozambique"]
[null,"Namibie",null,null,null,null,null,null,null,null,null,null,null,null,null,null,"Namibie"]
[null,"Nauru",null,null,null,null,null,null,null,null,null,null,null,null,null,null,"Nauru"]
[null,"Népal",null,null,null,null,null,null,null,null,null,null,null,null,null,null,"Népal"]
[null,"Nicaragua",null,null,null,null,null,null,null,null,null,null,null,null,null,null,"Nicaragua"]
[null,"Niger",null,null,null,null,null,null,null,null,null,null,null,null,null,null,"Niger"]
[null,"Nigeria",null,null,null,null,null,null,null,null,null,null,null,null,null,null,"Nigeria"]
[null,"Norvège",null,null,null,null,null,null,null,null,null,null,null,null,null,null,"Norvège"]
[null,"Nouvelle-Zélande",null,null,null,null,null,null,null,null,null,null,null,null,null,null,"Nouvelle-Zélande"]
[null,"Oman",null,null,null,null,null,null,null,null,null,null,null,null,null,null,"Oman"]
[null,"Ouganda",null,null,null,null,null,null,null,null,null,null,null,null,null,null,"Ouganda"]
[null,"Ouzbékistan",null,null,null,null,null,null,null,null,null,null,null,null,null,null,"Ouzbékistan"]
[null,"Pakistan",null,null,null,null,null,null,null,null,null,null,null,null,null,null,"Pakistan"]
[null,"Palaos",null,null,null,null,null,null,null,null,null,null,null,null,null,null,"Palaos"]
[null,"Panama",null,null,null,null,null,null,null,null,null,null,null,null,null,null,"Panama"]
[null,"Papouasie-Nouvelle-Guinée",null,null,null,null,null,null,null,null,null,null,null,null,null,null,"Papouasie-Nouvelle-Guinée"]
[null,"Paraguay",null,null,null,null,null,null,null,null,null,null,null,null,null,null,"Paraguay"]
[null,"Pays de Galles",null,null,null,null,null,null,null,null,null,null,null,null,null,null,"Pays de Galles"]
[null,"Pays-Bas",null,null,null,null,null,null,null,null,null,null,null,null,null,null,"Pays-Bas"]
[null,"Pérou",null,null,null,null,null,null,null,null,null,null,null,null,null,null,"Pérou"]
[null,"Philippines",null,null,null,null,null,null,null,null,null,null,null,null,null,null,"Philippines"]
[null,"Pologne",null,null,null,null,null,null,null,null,null,null,null,null,null,null,"Pologne"]
[null,"Portugal",null,null,null,null,null,null,null,null,null,null,null,null,null,null,"Portugal"]
[null,"Qatar",null,null,null,null,null,null,null,null,null,null,null,null,null,null,"Qatar"]
[null,"République Centrafricaine",null,null,null,null,null,null,null,null,null,null,null,null,null,null,"République Centrafricaine"]
[null,"République Démocratique du Congo",null,null,null,null,null,null,null,null,null,null,null,null,null,null,"République Démocratique du Congo"]
[null,"République Dominicaine",null,null,null,null,null,null,null,null,null,null,null,null,null,null,"République Dominicaine"]
[null,"République Tchèque",null,null,null,null,null,null,null,null,null,null,null,null,null,null,"République Tchèque"]
[null,"Roumanie",null,null,null,null,null,null,null,null,null,null,null,null,null,null,"Roumanie"]
[null,"Russie",null,null,null,null,null,null,null,null,null,null,null,null,null,null,"Russie"]
[null,"Rwanda",null,null,null,null,null,null,null,null,null,null,null,null,null,null,"Rwanda"]
[null,"Sainte-Lucie",null,null,null,null,null,null,null,null,null,null,null,null,null,null,"Sainte-Lucie"]
[null,"Saint-Kitts-et-Nevis",null,null,null,null,null,null,null,null,null,null,null,null,null,null,"Saint-Kitts-et-Nevis"]
[null,"Saint-Marin",null,null,null,null,null,null,null,null,null,null,null,null,null,null,"Saint-Marin"]
[null,"Saint-Vincent-et-les-Grenadines",null,null,null,null,null,null,null,null,null,null,null,null,null,null,"Saint-Vincent-et-les-Grenadines"]
[null,"Salomon",null,null,null,null,null,null,null,null,null,null,null,null,null,null,"Salomon"]
[null,"Salvador",null,null,null,null,null,null,null,null,null,null,null,null,null,null,"Salvador"]
[null,"Samoa",null,null,null,null,null,null,null,null,null,null,null,null,null,null,"Samoa"]
[null,"São Tomé et Príncipe",null,null,null,null,null,null,null,null,null,null,null,null,null,null,"São Tomé et Príncipe"]
[null,"Sénégal",null,null,null,null,null,null,null,null,null,null,null,null,null,null,"Sénégal"]
[null,"Serbie",null,null,null,null,null,null,null,null,null,null,null,null,null,null,"Serbie"]
[null,"Seychelles",null,null,null,null,null,null,null,null,null,null,null,null,null,null,"Seychelles"]
[null,"Sierra Leone",null,null,null,null,null,null,null,null,null,null,null,null,null,null,"Sierra Leone"]
[null,"Singapour",null,null,null,null,null,null,null,null,null,null,null,null,null,null,"Singapour"]
[null,"Slovaquie",null,null,null,null,null,null,null,null,null,null,null,null,null,null,"Slovaquie"]
[null,"Slovénie",null,null,null,null,null,null,null,null,null,null,null,null,null,null,"Slovénie"]
[null,"Somalie",null,null,null,null,null,null,null,null,null,null,null,null,null,null,"Somalie"]
[null,"Soudan",null,null,null,null,null,null,null,null,null,null,null,null,null,null,"Soudan"]
[null,"Sri Lanka",null,null,null,null,null,null,null,null,null,null,null,null,null,null,"Sri Lanka"]
[null,"Suède",null,null,null,null,null,null,null,null,null,null,null,null,null,null,"Suède"]
[null,"Suisse",null,null,null,null,null,null,null,null,null,null,null,null,null,null,"Suisse"]
[null,"Suriname",null,null,null,null,null,null,null,null,null,null,null,null,null,null,"Suriname"]
[null,"Swaziland",null,null,null,null,null,null,null,null,null,null,null,null,null,null,"Swaziland"]
[null,"Syrie",null,null,null,null,null,null,null,null,null,null,null,null,null,null,"Syrie"]
[null,"Tadjikistan",null,null,null,null,null,null,null,null,null,null,null,null,null,null,"Tadjikistan"]
[null,"Taïwan",null,null,null,null,null,null,null,null,null,null,null,null,null,null,"Taïwan"]
[null,"Tanzanie",null,null,null,null,null,null,null,null,null,null,null,null,null,null,"Tanzanie"]
[null,"Tchad",null,null,null,null,null,null,null,null,null,null,null,null,null,null,"Tchad"]
[null,"Thaïlande",null,null,null,null,null,null,null,null,null,null,null,null,null,null,"Thaïlande"]
[null,"Timor-Oriental",null,null,null,null,null,null,null,null,null,null,null,null,null,null,"Timor-Oriental"]
[null,"Togo",null,null,null,null,null,null,null,null,null,null,null,null,null,null,"Togo"]
[null,"Tonga",null,null,null,null,null,null,null,null,null,null,null,null,null,null,"Tonga"]
[null,"Trinité-et-Tobago",null,null,null,null,null,null,null,null,null,null,null,null,null,null,"Trinité-et-Tobago"]
[null,"Tunisie",null,null,null,null,null,null,null,null,null,null,null,null,null,null,"Tunisie"]
[null,"Turkménistan",null,null,null,null,null,null,null,null,null,null,null,null,null,null,"Turkménistan"]
[null,"Turquie",null,null,null,null,null,null,null,null,null,null,null,null,null,null,"Turquie"]
[null,"Tuvalu",null,null,null,null,null,null,null,null,null,null,null,null,null,null,"Tuvalu"]
[null,"Ukraine",null,null,null,null,null,null,null,null,null,null,null,null,null,null,"Ukraine"]
[null,"Uruguay",null,null,null,null,null,null,null,null,null,null,null,null,null,null,"Uruguay"]
[null,"Vanuatu",null,null,null,null,null,null,null,null,null,null,null,null,null,null,"Vanuatu"]
[null,"Vatican",null,null,null,null,null,null,null,null,null,null,null,null,null,null,"Vatican"]
[null,"Venezuela",null,null,null,null,null,null,null,null,null,null,null,null,null,null,"Venezuela"]
[null,"Viêt Nam",null,null,null,null,null,null,null,null,null,null,null,null,null,null,"Viêt Nam"]
[null,"Yémen",null,null,null,null,null,null,null,null,null,null,null,null,null,null,"Yémen"]
[null,"Zambie",null,null,null,null,null,null,null,null,null,null,null,null,null,null,"Zambie"]
[null,"Zimbabwe",null,null,null,null,null,null,null,null,null,null,null,null,null,null,"Zimbabwe"]